Workbook

Sheet Cover
A8: Distribution Network Service Provider
A9: Fire start report
A11: This template is to be used by a DNSP to provide a fire start report to the AER in accordance with section 5 of the F-factor Order in Council.
A13: Colour coding of input sheets:
A14: Dark blue = AER headings
A15: Grey = AER instructions
A16: Yellow = Input cells
A17: Light orange = Automatically-generated cells
A19: Leave coloured cells blank if no information exists - PLEASE DO NOT ENTER TEXT unless specifically requested to do so.
A20: All dollar amounts are to be unrounded, and in nominal terms.
A25: DNSP: | C25: United Energy
A27: DNSP - trading name: | C27: United Energy Distribution Pty Ltd
A29: DNSP - Australian business number: | C29: 70 064 651 029
A31: Reporting year: | C31: 2016/17
A36: Business address | B36: Address | D36: 43 - 45 Centreway
B37: Suburb | D37: Mt Waverley
C38: State | D38: Victoria | E38: Postcode | F38: 3149
A40: Postal address | B40: Address | D40: P.O Box 449
B41: Suburb | D41: Mt Waverley
C42: State | D42: Victoria | E42: Postcode | F42: 3149
A45: Contact name/s | B45: Mark de Villiers
A46: Contact phone/s | B46: 396834907
A47: Contact email address/s | B47: mdevilliers@powercor.com.au

Sheet Contents
E3: Electricity Distribution Network Service Provider F-factor Reporting Template
H5: Table of contents
C8: Cover sheet | F8: 2. Fire start report
C12: 1. F-factor summary | F12: 3. Systems and Audit

Sheet 1. F-Factor summary
B1: =IF(Cover!C25="","[DNSP Name]", Cover!C25) -> United Energy | C1: IRU target: | D1: =IF(SUM(K6:O6)=0,"",SUM(K6:O6)) -> 22.3 | K1: AusNet Services | L1: CitiPower | M1: Jemena | N1: Powercor | O1: United Energy
B2: F-factor data reporting | C2: IRU amount: | D2: =IF(SUM('2. Individual fire start info'!U39:U116)=0,"",SUM('2. Individual fire start info'!U39:U116)) -> 5.84 | J2: 2016/17 | K2: 247.7 | L2: 3.4 | M2: 9.7 | N2: 468 | O2: 22.3
B3: =IF(Cover!C31="","[Year]",Cover!C31) -> 2016/17 | C3: Revenue adjustment: | D3: =IF(OR(D1="",D2=""),"",15000*(D1-D2)) -> 246900 | J3: 2017/18 | K3: 247.7 | L3: 3.4 | M3: 9.7 | N3: 468 | O3: 22.3
B4: Table 1: Summary of total fire starts | J4: 2018/19 | K4: 247.7 | L4: 3.4 | M4: 9.7 | N4: 468 | O4: 22.3
B5: This is a summary of data in worksheet "2. Fire Start Report" | J5: 2019/20 | K5: 221.1 | L5: 3.4 | M5: 9.7 | N5: 412.8 | O5: 22.3
D6: Total fires by category | K6: =IF(OR($B3="[Year]",$B1="[DNSP Name]",$B1<>K1),"",LOOKUP($B3,$J2:$J5,K2:K5)) ->  | L6: =IF(OR($B3="[Year]",$B1="[DNSP Name]",$B1<>L1),"",LOOKUP($B3,$J2:$J5,L2:L5)) ->  | M6: =IF(OR($B3="[Year]",$B1="[DNSP Name]",$B1<>M1),"",LOOKUP($B3,$J2:$J5,M2:M5)) ->  | N6: =IF(OR($B3="[Year]",$B1="[DNSP Name]",$B1<>N1),"",LOOKUP($B3,$J2:$J5,N2:N5)) ->  | O6: =IF(OR($B3="[Year]",$B1="[DNSP Name]",$B1<>O1),"",LOOKUP($B3,$J2:$J5,O2:O5)) -> 22.3
B7: Fire Start by Category | C7: Fire Start by Asset
B8: Asset failures resulting in grass/vegetation fire | C8: Pole and cross arm failure or Pole and cross arm fire | D8: =COUNTIF('2. Individual fire start info'!$K$39:$K$117,'1. F-Factor summary'!$J9) -> 0
C9: Oil-filled plant | D9: =COUNTIF('2. Individual fire start info'!$K$39:$K$117,'1. F-Factor summary'!$J10) -> 0 | J9: =B8&" : "&C8 -> Asset failures resulting in grass/vegetation fire : Pole and cross arm failure or Pole and cross arm fire
C10: HV Fuse | D10: =COUNTIF('2. Individual fire start info'!$K$39:$K$117,'1. F-Factor summary'!$J11) -> 2 | J10: =B8&" : "&C9 -> Asset failures resulting in grass/vegetation fire : Oil-filled plant
C11: Other Assets | D11: =COUNTIF('2. Individual fire start info'!$K$39:$K$117,'1. F-Factor summary'!$J12) -> 9 | J11: =B8&" : "&C10 -> Asset failures resulting in grass/vegetation fire : HV Fuse
C12: Any fire triggered by any asset failure caused by Lightning | D12: =COUNTIF('2. Individual fire start info'!$K$39:$K$117,'1. F-Factor summary'!$J13) -> 0 | J12: =B8&" : "&C11 -> Asset failures resulting in grass/vegetation fire : Other Assets
B13: Grass/vegetation fires from assets (non-asset failures) | C13: Fire starts in grass/vegetation resulting from animal contact with network assets | D13: =COUNTIF('2. Individual fire start info'!$K$39:$K$117,'1. F-Factor summary'!$J14) -> 2 | J13: =B8&" : "&C12 -> Asset failures resulting in grass/vegetation fire : Any fire triggered by any asset failure caused by Lightning
C14: Fire starts in grass/vegetation resulting from trees contacting network assets | D14: =COUNTIF('2. Individual fire start info'!$K$39:$K$117,'1. F-Factor summary'!$J15) -> 5 | J14: =B13&" : "&C13 -> Grass/vegetation fires from assets (non-asset failures) : Fire starts in grass/vegetation resulting from animal contact with network assets
C15: Fire starts in grass/vegetation resulting from other causes (vehicle strikes, vandalism etc) | D15: =COUNTIF('2. Individual fire start info'!$K$39:$K$117,'1. F-Factor summary'!$J16) -> 1 | J15: =B13&" : "&C14 -> Grass/vegetation fires from assets (non-asset failures) : Fire starts in grass/vegetation resulting from trees contacting network assets
B16: Asset failures resulting in asset fire (no grass/vegetation fire) | C16: Pole and cross arm fire (including ‘smouldering’ or ‘smoke’) | D16: =COUNTIF('2. Individual fire start info'!$K$39:$K$117,'1. F-Factor summary'!$J17) -> 14 | J16: =B13&" : "&C15 -> Grass/vegetation fires from assets (non-asset failures) : Fire starts in grass/vegetation resulting from other causes (vehicle strikes, vandalism etc)
C17: Oil-filled plant fire | D17: =COUNTIF('2. Individual fire start info'!$K$39:$K$117,'1. F-Factor summary'!$J18) -> 3 | J17: =B16&" : "&C16 -> Asset failures resulting in asset fire (no grass/vegetation fire) : Pole and cross arm fire (including ‘smouldering’ or ‘smoke’)
C18: HV Fuse Failure (including ‘hang-ups’ and ‘candling’) | D18: =COUNTIF('2. Individual fire start info'!$K$39:$K$117,'1. F-Factor summary'!$J19) -> 1 | J18: =B16&" : "&C17 -> Asset failures resulting in asset fire (no grass/vegetation fire) : Oil-filled plant fire
C19: Other Assets | D19: =COUNTIF('2. Individual fire start info'!$K$39:$K$117,'1. F-Factor summary'!$J20) -> 39 | J19: =B16&" : "&C18 -> Asset failures resulting in asset fire (no grass/vegetation fire) : HV Fuse Failure (including ‘hang-ups’ and ‘candling’)
C20: Any fire triggered by any asset failure caused by Lightning | D20: =COUNTIF('2. Individual fire start info'!$K$39:$K$117,'1. F-Factor summary'!$J21) -> 0 | J20: =B16&" : "&C19 -> Asset failures resulting in asset fire (no grass/vegetation fire) : Other Assets
B21: Any other Fire Start | C21: Any additional fires, caused by any asset failure, not reported to the ESV and required to be reported by the f-factor Order | D21: =COUNTIF('2. Individual fire start info'!$K$39:$K$117,'1. F-Factor summary'!$J22) -> 0 | J21: =B16&" : "&C20 -> Asset failures resulting in asset fire (no grass/vegetation fire) : Any fire triggered by any asset failure caused by Lightning
B22: Total | D22: =SUM(D8:D21) -> 76 | J22: =B21&" : "&C21 -> Any other Fire Start : Any additional fires, caused by any asset failure, not reported to the ESV and required to be reported by the f-factor Order
B23: Table 2: Summary of total fire starts by F factor Order definition
B24: This is a summary of data in worksheet "2. Fire Start Report"
B25: Kind of Fire Start by definition of fire start under clause 5 of F-factor Order | C25: Total fires by cause
B26: Started in or originated from a distribution system | C26: =COUNTIF('2. Individual fire start info'!$N$39:$N$117,'1. F-Factor summary'!$B26) -> 63
B27: Started by any tree, or part of a tree, falling upon or coming into contact with a distribution system | C27: =COUNTIF('2. Individual fire start info'!$N$39:$N$117,'1. F-Factor summary'!$B27) -> 5
B28: Started by any person, bird, reptile or other animal coming into contact with a distribution system | C28: =COUNTIF('2. Individual fire start info'!$N$39:$N$117,'1. F-Factor summary'!$B28) -> 5 | J28: Overhead conductors
B29: Started by lightning striking a distribution system or a part of a distribution system | C29: =COUNTIF('2. Individual fire start info'!$N$39:$N$117,'1. F-Factor summary'!$B29) -> 0 | J29: - overhead conductor (bare; aluminium core steel reinforced)
B30: Started by any other thing forming part of or coming into contact with a distribution system | C30: =COUNTIF('2. Individual fire start info'!$N$39:$N$117,'1. F-Factor summary'!$B30) -> 3 | J30: - overhead conductor (bare; all aluminium conductor)
B31: Otherwise started by a distribution system | C31: =COUNTIF('2. Individual fire start info'!$N$39:$N$117,'1. F-Factor summary'!$B31) -> 0 | J31: - overhead conductor (bare; copper)
B32: Total | C32: =SUM(C26:C31) -> 76 | J32: - overhead conductor (bare; steel)
J33: - overhead conductor (ABC)
J34: - overhead conductor (covered uninsulated)
J35: - overhead conductor (insulated)
J36: Service lines
J37: - overhead service conductor (residential)
J38: - overhead service conductor (commercial / industrial)
J39: - overhead service conductor (subdivision / construction)
J40: - overhead service conductor (other)
J41: - underground service cable (residential)
J42: - underground service cable (commercial / industrial)
J43: - underground service cable (subdivision / construction)
J44: - underground service cable (other)
J45: Underground cables
J46: - underground cable
J47: - underground communications cable
J48: Poles
J49: - pole (concrete)
J50: - pole (steel)
J51: - pole (wood)
J52: Crossarms
J53: - crossarm (wood)
J54: - crossarm (steel)
J55: - crossarm (other)
J56: Overhead assets
J57: - capacity balancing units
J58: - connector / termination
J59: - dropper / bridge
J60: - guy wire
J61: - insulator tie wires / connections
J62: - insulators
J63: - tower
J64: - traction lines
J65: Underground assets
J66: - LV pillar
J67: - services pit
J68: Transformers
J69: - transformer (pole mounted)
J70: - transformer (kiosk mounted)
J71: - transformer (ground outdoor mounted)
J72: - transformer (indoor chamber mounted)
J73: - transformer (any other type)
J74: - measurement transformer (current transformer)
J75: - measurement transformer (voltage transformer)
J76: - measurement transformer (capacitive voltage transformer)
J77: Fuses and switchgear
J78: - fuse (boric acid)
J79: - fuse (EDO fuse)
J80: - fuse (Fault Tamer)
J81: - fuse (powder filled)
J82: - fuse (any other type)
J83: - circuit breaker
J84: - switch (disconnector/isolator)
J85: - switch (earth)
J86: - switch (FuseSaver)
J87: - switch (any other type)
J88: SCADA, network control and protection systems
J89: - audio frequency load controller (AFLC)
J90: - arc suppresion coil
J91: - automatic circuit recloser (ACR)
J92: - communications linear assets
J93: - communications network assets
J94: - communications site infrastructure
J95: - field devices
J96: - local network wiring assets
J97: - master station assets
J98: - neutral earthing resistor
J99: - oil-filled circuit recloser (OCR)
J100: - rapid earth fault current limiter (REFCL)
J101: - surge diverter
J102: - voltage regulator
J103: Public lighting
J104: - brackets (major road)
J105: - brackets (minor road)
J106: - lamps (major road)
J107: - lamps (minor road)
J108: - luminaries (major road)
J109: - luminaries (minor road)
J110: - poles / columns (major road)
J111: - poles / columns (minor road)
J112: Other
J113: - connection box
J114: - earth / earthing
J117: Extra low voltage AC (<50V)
J118: Low voltage AC (<1kV)
J119: 2.2kV AC
J120: 6.6kV AC
J121: 11kV AC
J122: 12.7kV AC (SWER)
J123: 22kV AC
J124: 33kV AC
J125: 66kV AC
J126: 132kV AC
J127: 220kV AC
J128: 330kV AC
J129: 500kV AC
J130: Extra low voltage DC (<120V ripple free)
J131: Low voltage DC (<1.5kV)
J132: 600V DC
J133: 1500V DC
J134: Earthing cable
J137: single wire earth return (SWER)
J138: single phase
J139: two phase
J140: three phase
J143: Negligible: no ground fire
J144: Localised: less than 10 sq.m
J145: Small: 10 - 1000 aq.m
J146: Medium: 1000 sq.m - 10 ha
J147: Large: more than 10 ha

Sheet 2. Individual fire start info
A1: =IF(Cover!C25="","[DNSP Name]", Cover!C25) -> United Energy
A2: F-factor data reporting
A3: =IF(Cover!C31="","[Year]",Cover!C31) -> 2016/17
A6: Instructions:
A8: ="Enter into this worksheet fire start data, from any IT system, which have been recorded by "&IF(Cover!C25="","[DNSP Name]", Cover!C25)&". Note that fire starts must be in accordance with the definition of a fire start in the Order In Council." -> Enter into this worksheet fire start data, from any IT system, which have been recorded by United Energy. Note that fire starts must be in accordance with the definition of a fire start in the Order In Council.
A10: "Fire" should be interpreted using its common meaning and can be defined as a process in which substances combine chemically with oxygen from the air and typically give out bright light, heat and smoke. A fire should be recorded where there is evidence of smoking, charring, scorching, burning or any other evidence that a fire had occurred.
A12: =IF(Cover!C25="","[DNSP Name] must provide:", CONCATENATE(Cover!C25," must provide:")) -> United Energy must provide:
A14: Table 3 - Individual Fire Starts
A15: (1) Date - dd/mm/yyyy
A16: (2) Time - if known, the 24-hour time of the fire start hh:mm
A17: (3) Latitude and longitude of the fire start as decimal coordinates
A18: (4) Asset number for the asset nearest the fire start
A19: =" (5) Feeder ID for the polyphase overhead line or underground cable nearest the fire start in the "&A1&" network" -> (5) Feeder ID for the polyphase overhead line or underground cable nearest the fire start in the United Energy network
A20: (6) Voltage on the line in which the fire start occurred (note: this may not be the nearest polyphase overhead line)
A21: (7) Network categorisation - CBD, Urban, Rural Long or Rural Short
A22: (8) Fire start by category in accordance with ESV quarterly reporting categories
A23: (9) Asset type of primary asset causing fire in accordance with OSIRIS asset categories
A24: (10) Where the asset involved in the fire is a transformer or an overhead or underground line, provide the phase, or phases, of the line or transformer
A25: (11) Kind of fire start in accordance with categories specified in Clause 5 of the F-factor Order-In-Council
A26: (12) Rating of High Bushfire Risk Area (HBRA) or Low Bushfire Risk Are (LBRA) as assigned by CFA & MFB under s.80 of the Electricity Safety Act
A27: (13) Identify the location of the fire start in accordance with the categories specified in Clause 11(b) of the F-factor Order-In-Council
A28: (14) Has the CFA declared a fire danger period under the Country Fire Authority Act 1958 - Y/N?
A29: (15) Where a fire danger period has been declared, provide the daily CFA fire danger rating (or leave blank if the area has not yet been declared)
A30: =" (16) "&IF(Cover!C25="","[DNSP Name]", Cover!C25)&"'s record number for the incident" -> (16) United Energy's record number for the incident
A31: (17) ESV's OSIRIS reference number for the incident
A32: (18) Free text description of the fault containing relevant comments from field reports
A35: Table 3: Individual Fire Starts
A37: Number | C37: Fire starts | K37: Fire Type | O37: Risk Factors | U37: IRU amount
B38: Date/Time | C38: Date 1 | D38: Time 2 | E38: Latitude 3 | F38: Longitude 3 | G38: ID of nearest asset 4 | H38: ID of nearest polyphase line 5 | I38: Voltage of line in which fire start occurred 6 | J38: Network categorisation 7 | K38: Fire start by ESV category 8 | L38: Fire start by asset type 9 | M38: Phase(s) of line or transformer 10 | N38: Kind of fire start as per Clause 5 of F-factor Order-In-Council 11 | O38: HBRA or LBRA 12 | P38: Location area 13 | Q38: Location multiplier | R38: Fire danger period declared? 14 | S38: Fire danger rating 15 | T38: Danger multiplier | U38: Product of multipliers | V38: DNSP record number 16 | W38: OSIRIS (ESV) reference number 17 | X38: Fault description 18 | Y38: Asset | Z38: DMS # | AA38: Fire Report
A39: 1 | B39: 2016-07-09T16:23:46 | C39: =DATEVALUE(DAY(B39) & "/" & MONTH(B39) & "/" & YEAR(B39)) -> 2016-07-09 | D39: =TIME(HOUR(B39),MINUTE(B39),SECOND(B39)) -> 16:23:46 | E39: =_xlfn.IFNA(VLOOKUP($G39,Mapping!$C:$H,2,FALSE),"CHECK") -> -37.94755607 | F39: =_xlfn.IFNA(VLOOKUP($G39,Mapping!$C:$H,3,FALSE),"CHECK") -> 145.1561781 | G39: 635790 | H39: =_xlfn.IFNA(VLOOKUP($G39,Mapping!$C:$H,6,FALSE),"CHECK") -> SV 32 | I39: 22kV AC | J39: =_xlfn.IFNA(VLOOKUP($G39,Mapping!$C:$H,4,FALSE),"CHECK") -> Urban | K39: Grass/vegetation fires from assets (non-asset failures) : Fire starts in grass/vegetation resulting from animal contact with network assets | L39: - overhead conductor (bare; all aluminium conductor) | M39: three phase | N39: Started by any person, bird, reptile or other animal coming into contact with a distribution system | O39: =_xlfn.IFNA(VLOOKUP($G39,Mapping!$C:$H,5,FALSE),"CHECK") -> LBRA | P39: =IF(O39="LBRA","LBRA only","HBRA only") -> LBRA only | Q39: =IF(P39="","",IF(P39="LBRA only",0.2,IF(P39="HBRA only",1,IF(P39="within electric line construction area",19.8,IF(P39="within area delineated on plan LEGL./16-354",4.6,""))))) -> 0.2 | R39: N | S39: =_xlfn.IFNA(VLOOKUP(C39,'Fire Rating'!$B:$C,2,FALSE),"") -> No forecast | T39: =IF(S39="","",IF(S39="No forecast",0.1,IF(R39="N",0.1,IF(S39="Low-moderate",0.2,IF(S39="High",0.5,IF(S39="Very high",1,IF(S39="Severe",2,IF(S39="Extreme",3.5,5)))))))) -> 0.1 | U39: =IF(OR(Q39="",T39=""),"",IF(AND(P39="within electric line construction area",S39="No forecast"),1,Q39*T39)) -> 0.02 | V39: 4962 | W39: 20160711UTD_01 | X39: Birds nest on dressing down arm , made with bits of wire . LIS#0635790. Small fire started at base of pole in rubbish. It was extinguished prior to our arrival. | Y39: Bird/Animal | Z39: 893905 | AA39: 1563
A40: 2 | B40: 2016-07-11T16:52:20 | C40: 2016-07-11 | D40: 16:52:20 | E40: =_xlfn.IFNA(VLOOKUP($G40,Mapping!$C:$H,2,FALSE),"CHECK") -> -37.95282184 | F40: =_xlfn.IFNA(VLOOKUP($G40,Mapping!$C:$H,3,FALSE),"CHECK") -> 145.0119522 | G40: 1822914 | H40: =_xlfn.IFNA(VLOOKUP($G40,Mapping!$C:$H,6,FALSE),"CHECK") -> SR 11 | I40: Low voltage AC (<1kV) | J40: =_xlfn.IFNA(VLOOKUP($G40,Mapping!$C:$H,4,FALSE),"CHECK") -> Urban | K40: Asset failures resulting in asset fire (no grass/vegetation fire) : Other Assets | L40: - connector / termination | M40: single phase | N40: Started in or originated from a distribution system | O40: =_xlfn.IFNA(VLOOKUP($G40,Mapping!$C:$H,5,FALSE),"CHECK") -> LBRA | P40: =IF(O40="LBRA","LBRA only","HBRA only") -> LBRA only | Q40: =IF(P40="","",IF(P40="LBRA only",0.2,IF(P40="HBRA only",1,IF(P40="within electric line construction area",19.8,IF(P40="within area delineated on plan LEGL./16-354",4.6,""))))) -> 0.2 | R40: N | S40: =_xlfn.IFNA(VLOOKUP(C40,'Fire Rating'!$B:$C,2,FALSE),"") -> No forecast | T40: =IF(S40="","",IF(S40="No forecast",0.1,IF(R40="N",0.1,IF(S40="Low-moderate",0.2,IF(S40="High",0.5,IF(S40="Very high",1,IF(S40="Severe",2,IF(S40="Extreme",3.5,5)))))))) -> 0.1 | U40: 0.02 | V40: 4992 | W40: 20160819UTD_01 | X40: repaired active service connection to thew street light | Y40: HV/LV Connection | Z40: 896195 | AA40: 2626
A41: 3 | B41: 2016-07-13T18:30:46 | C41: 2016-07-13 | D41: 18:30:46 | E41: =_xlfn.IFNA(VLOOKUP($G41,Mapping!$C:$H,2,FALSE),"CHECK") -> -37.89888856 | F41: =_xlfn.IFNA(VLOOKUP($G41,Mapping!$C:$H,3,FALSE),"CHECK") -> 145.2233307 | G41: 8808747 | H41: =_xlfn.IFNA(VLOOKUP($G41,Mapping!$C:$H,6,FALSE),"CHECK") -> MGE21 | I41: 22kV AC | J41: =_xlfn.IFNA(VLOOKUP($G41,Mapping!$C:$H,4,FALSE),"CHECK") -> Urban | K41: Asset failures resulting in asset fire (no grass/vegetation fire) : Other Assets | L41: - surge diverter | M41: three phase | N41: Started in or originated from a distribution system | O41: =_xlfn.IFNA(VLOOKUP($G41,Mapping!$C:$H,5,FALSE),"CHECK") -> LBRA | P41: LBRA only | Q41: 0.2 | R41: N | S41: =_xlfn.IFNA(VLOOKUP(C41,'Fire Rating'!$B:$C,2,FALSE),"") -> No forecast | T41: 0.1 | U41: 0.02 | V41: 4993 | W41: 20160819UTD_02 | X41: Lis 8808747, LA on B phase found blowen clear. All three cut clear. Notification ##1000537547 | Y41: Surge Diverter | Z41: 898263 | AA41: 2628
A42: 4 | B42: 2016-07-22T16:45:00 | C42: 2016-07-22 | D42: 16:45:00 | E42: =_xlfn.IFNA(VLOOKUP($G42,Mapping!$C:$H,2,FALSE),"CHECK") -> -38.3093736 | F42: =_xlfn.IFNA(VLOOKUP($G42,Mapping!$C:$H,3,FALSE),"CHECK") -> 145.145655 | G42: 1110545 | H42: =_xlfn.IFNA(VLOOKUP($G42,Mapping!$C:$H,6,FALSE),"CHECK") -> HGS22 | I42: Low voltage AC (<1kV) | J42: =_xlfn.IFNA(VLOOKUP($G42,Mapping!$C:$H,4,FALSE),"CHECK") -> Rural Short | K42: Asset failures resulting in asset fire (no grass/vegetation fire) : Other Assets | L42: - underground service cable (residential) | M42: three phase | N42: Started in or originated from a distribution system | O42: =_xlfn.IFNA(VLOOKUP($G42,Mapping!$C:$H,5,FALSE),"CHECK") -> HBRA | P42: HBRA only | Q42: 1 | R42: N | S42: =_xlfn.IFNA(VLOOKUP(C42,'Fire Rating'!$B:$C,2,FALSE),"") -> No forecast | T42: 0.1 | U42: 0.1 | V42: 4981 | W42: 20160725UTD_02 | X42: It was reported that tight bandit tape compressed LV ABC and the shorted - Linesman witness flame on cable | Y42: Human Error | Z42: 899948 | AA42: 6525
A43: 5 | B43: 2016-07-26T18:04:29 | C43: 2016-07-26 | D43: 18:04:29 | E43: =_xlfn.IFNA(VLOOKUP($G43,Mapping!$C:$H,2,FALSE),"CHECK") -> -37.80077114 | F43: =_xlfn.IFNA(VLOOKUP($G43,Mapping!$C:$H,3,FALSE),"CHECK") -> 145.1923466 | G43: 7067507 | H43: =_xlfn.IFNA(VLOOKUP($G43,Mapping!$C:$H,6,FALSE),"CHECK") -> NW 22 | I43: Low voltage AC (<1kV) | J43: =_xlfn.IFNA(VLOOKUP($G43,Mapping!$C:$H,4,FALSE),"CHECK") -> Urban | K43: Asset failures resulting in asset fire (no grass/vegetation fire) : Other Assets | L43: - lamps (major road) | M43: single phase | N43: Started in or originated from a distribution system | O43: =_xlfn.IFNA(VLOOKUP($G43,Mapping!$C:$H,5,FALSE),"CHECK") -> LBRA | P43: LBRA only | Q43: 0.2 | R43: N | S43: =_xlfn.IFNA(VLOOKUP(C43,'Fire Rating'!$B:$C,2,FALSE),"") -> No forecast | T43: 0.1 | U43: 0.02 | V43: 4986 | W43: 20160727UTD_03 | X43: Replaced 150 hp sodium head that had caught fire1 pole south of the bridge over eastlink on the east side | Y43: Street Lights | Z43: 901086 | AA43: 2629
A44: 6 | B44: 2016-07-27T07:58:49 | C44: 2016-07-27 | D44: 07:58:49 | E44: =_xlfn.IFNA(VLOOKUP($G44,Mapping!$C:$H,2,FALSE),"CHECK") -> -38.01750266 | F44: =_xlfn.IFNA(VLOOKUP($G44,Mapping!$C:$H,3,FALSE),"CHECK") -> 145.2149789 | G44: 9360948 | H44: =_xlfn.IFNA(VLOOKUP($G44,Mapping!$C:$H,6,FALSE),"CHECK") -> DSH31 | I44: 22kV AC | J44: =_xlfn.IFNA(VLOOKUP($G44,Mapping!$C:$H,4,FALSE),"CHECK") -> Urban | K44: Asset failures resulting in asset fire (no grass/vegetation fire) : HV Fuse Failure (including ‘hang-ups’ and ‘candling’) | L44: - fuse (boric acid) | M44: three phase | N44: Started in or originated from a distribution system | O44: =_xlfn.IFNA(VLOOKUP($G44,Mapping!$C:$H,5,FALSE),"CHECK") -> LBRA | P44: LBRA only | Q44: 0.2 | R44: N | S44: =_xlfn.IFNA(VLOOKUP(C44,'Fire Rating'!$B:$C,2,FALSE),"") -> No forecast | T44: 0.1 | U44: 0.02 | V44: 4988 | W44: 20160728UTD_02 | X44: UE B/A fuse was on fire/out by the time crew arrived, no other damage sustained, fuse fire only. LIS 9360948, Fire Report Ref 01870 | Y44: HV/LV Connection | Z44: 901163 | AA44: 1870
A45: 7 | B45: 2016-08-11T14:25:15 | C45: 2016-08-11 | D45: 14:25:15 | E45: =_xlfn.IFNA(VLOOKUP($G45,Mapping!$C:$H,2,FALSE),"CHECK") -> -37.97770743 | F45: =_xlfn.IFNA(VLOOKUP($G45,Mapping!$C:$H,3,FALSE),"CHECK") -> 145.0169621 | G45: 1811878 | H45: =_xlfn.IFNA(VLOOKUP($G45,Mapping!$C:$H,6,FALSE),"CHECK") -> BR 04 | I45: Low voltage AC (<1kV) | J45: =_xlfn.IFNA(VLOOKUP($G45,Mapping!$C:$H,4,FALSE),"CHECK") -> Urban | K45: Asset failures resulting in asset fire (no grass/vegetation fire) : Other Assets | L45: - connection box | M45: three phase | N45: Started in or originated from a distribution system | O45: =_xlfn.IFNA(VLOOKUP($G45,Mapping!$C:$H,5,FALSE),"CHECK") -> LBRA | P45: LBRA only | Q45: 0.2 | R45: N | S45: =_xlfn.IFNA(VLOOKUP(C45,'Fire Rating'!$B:$C,2,FALSE),"") -> No forecast | T45: 0.1 | U45: 0.02 | V45: 4996 | W45: 20160819UTD_04 | X45: Replaced burnt out 3ph fmb at lis1811878 fire report 04002 completed as jb had caught fire but had been put out by mfb before crew arrived | Y45: LV Isol/Mains Box/FMB | Z45: 904038 | AA45: 4002
A46: 8 | B46: 2016-08-25T13:04:00 | C46: 2016-08-25 | D46: 13:04:00 | E46: =_xlfn.IFNA(VLOOKUP($G46,Mapping!$C:$H,2,FALSE),"CHECK") -> -37.85054444 | F46: =_xlfn.IFNA(VLOOKUP($G46,Mapping!$C:$H,3,FALSE),"CHECK") -> 145.1466807 | G46: 7040186 | H46: =_xlfn.IFNA(VLOOKUP($G46,Mapping!$C:$H,6,FALSE),"CHECK") -> EB 14 | I46: Low voltage AC (<1kV) | J46: =_xlfn.IFNA(VLOOKUP($G46,Mapping!$C:$H,4,FALSE),"CHECK") -> Urban | K46: Asset failures resulting in asset fire (no grass/vegetation fire) : Other Assets | L46: - connection box | M46: single phase | N46: Started in or originated from a distribution system | O46: =_xlfn.IFNA(VLOOKUP($G46,Mapping!$C:$H,5,FALSE),"CHECK") -> LBRA | P46: LBRA only | Q46: 0.2 | R46: N | S46: =_xlfn.IFNA(VLOOKUP(C46,'Fire Rating'!$B:$C,2,FALSE),"") -> No forecast | T46: 0.1 | U46: 0.02 | V46: 5007 | W46: 20160830UTD_01 | X46: A faulty UE contactor has started a fire on cust meterboard, crew has isolated supply for safety at pole lis # 7040186, issue defect to cust REC require. | Y46: Meter or Meterboard | Z46: 910071 | AA46: 3935
A47: 9 | B47: 2016-08-25T22:24:47 | C47: 2016-08-25 | D47: 22:24:47 | E47: =_xlfn.IFNA(VLOOKUP($G47,Mapping!$C:$H,2,FALSE),"CHECK") -> -38.1456011 | F47: =_xlfn.IFNA(VLOOKUP($G47,Mapping!$C:$H,3,FALSE),"CHECK") -> 145.1207365 | G47: 8819378 | H47: =_xlfn.IFNA(VLOOKUP($G47,Mapping!$C:$H,6,FALSE),"CHECK") -> FSH31 | I47: Low voltage AC (<1kV) | J47: =_xlfn.IFNA(VLOOKUP($G47,Mapping!$C:$H,4,FALSE),"CHECK") -> Urban | K47: Asset failures resulting in asset fire (no grass/vegetation fire) : Other Assets | L47: - lamps (major road) | M47: single phase | N47: Started in or originated from a distribution system | O47: =_xlfn.IFNA(VLOOKUP($G47,Mapping!$C:$H,5,FALSE),"CHECK") -> LBRA | P47: LBRA only | Q47: 0.2 | R47: N | S47: =_xlfn.IFNA(VLOOKUP(C47,'Fire Rating'!$B:$C,2,FALSE),"") -> No forecast | T47: 0.1 | U47: 0.02 | V47: 5005 | W47: 20160826UTD_02 | X47: SL burnt out/caught on fire, cover missing, caused by moisture and salt/corrosion. Loca SL head/350watt lantern LIS 8819378. | Y47: Street Lights | Z47: 910244 | AA47: 6621
A48: 10 | B48: 2016-09-04T23:17:00 | C48: 2016-09-04 | D48: 23:17:00 | E48: =_xlfn.IFNA(VLOOKUP($G48,Mapping!$C:$H,2,FALSE),"CHECK") -> -38.17057505 | F48: =_xlfn.IFNA(VLOOKUP($G48,Mapping!$C:$H,3,FALSE),"CHECK") -> 145.2038319 | G48: 3301085 | H48: =_xlfn.IFNA(VLOOKUP($G48,Mapping!$C:$H,6,FALSE),"CHECK") -> FSH21 | I48: Low voltage AC (<1kV) | J48: =_xlfn.IFNA(VLOOKUP($G48,Mapping!$C:$H,4,FALSE),"CHECK") -> Rural Short | K48: Asset failures resulting in asset fire (no grass/vegetation fire) : Other Assets | L48: - connection box | M48: two phase | N48: Started in or originated from a distribution system | O48: =_xlfn.IFNA(VLOOKUP($G48,Mapping!$C:$H,5,FALSE),"CHECK") -> HBRA | P48: HBRA only | Q48: 1 | R48: N | S48: =_xlfn.IFNA(VLOOKUP(C48,'Fire Rating'!$B:$C,2,FALSE),"") -> No forecast | T48: 0.1 | U48: 0.1 | V48: 5013 | W48: 20160907UTD_01 | X48: At 330 centre rd reports of a fire on pole o/s property, Crew attended and @ Lis 3301085 replaced 3w JB & 3w fmb for UG on serv pole. Possible loose connection | Y48: LV Isol/Mains Box/FMB | Z48: 914846 | AA48: 6622
A49: 11 | B49: 2016-09-21T05:26:30 | C49: 2016-09-21 | D49: 05:26:30 | E49: =_xlfn.IFNA(VLOOKUP($G49,Mapping!$C:$H,2,FALSE),"CHECK") -> -38.36491708 | F49: =_xlfn.IFNA(VLOOKUP($G49,Mapping!$C:$H,3,FALSE),"CHECK") -> 145.2037747 | G49: 8826905 | H49: =_xlfn.IFNA(VLOOKUP($G49,Mapping!$C:$H,6,FALSE),"CHECK") -> HGS31 | I49: Low voltage AC (<1kV) | J49: =_xlfn.IFNA(VLOOKUP($G49,Mapping!$C:$H,4,FALSE),"CHECK") -> Rural Short | K49: Asset failures resulting in asset fire (no grass/vegetation fire) : Other Assets | L49: - lamps (major road) | M49: single phase | N49: Started in or originated from a distribution system | O49: =_xlfn.IFNA(VLOOKUP($G49,Mapping!$C:$H,5,FALSE),"CHECK") -> LBRA | P49: LBRA only | Q49: 0.2 | R49: N | S49: =_xlfn.IFNA(VLOOKUP(C49,'Fire Rating'!$B:$C,2,FALSE),"") -> No forecast | T49: 0.1 | U49: 0.02 | V49: 5030 | W49: 20161006UTD_01 | X49: CFA advised pole lis # 8826905 correct address is 216 Stony point rd - isolated and replaced 150w sodium street light | Y49: Street Lights | Z49: 924191 | AA49: 6527
A50: 12 | B50: 2016-09-22T19:32:14 | C50: 2016-09-22 | D50: 19:32:14 | E50: =_xlfn.IFNA(VLOOKUP($G50,Mapping!$C:$H,2,FALSE),"CHECK") -> -37.79734301 | F50: =_xlfn.IFNA(VLOOKUP($G50,Mapping!$C:$H,3,FALSE),"CHECK") -> 145.1826827 | G50: 9279455 | H50: =_xlfn.IFNA(VLOOKUP($G50,Mapping!$C:$H,6,FALSE),"CHECK") -> NW 13 | I50: Low voltage AC (<1kV) | J50: =_xlfn.IFNA(VLOOKUP($G50,Mapping!$C:$H,4,FALSE),"CHECK") -> Urban | K50: Asset failures resulting in asset fire (no grass/vegetation fire) : Other Assets | L50: - lamps (minor road) | M50: single phase | N50: Started in or originated from a distribution system | O50: =_xlfn.IFNA(VLOOKUP($G50,Mapping!$C:$H,5,FALSE),"CHECK") -> LBRA | P50: LBRA only | Q50: 0.2 | R50: N | S50: =_xlfn.IFNA(VLOOKUP(C50,'Fire Rating'!$B:$C,2,FALSE),"") -> No forecast | T50: 0.1 | U50: 0.02 | V50: 5031 | W50: 20161006UTD_02 | X50: Crew pulled fuse at base of street light. head to be replaced. (special Head) its o/s number 12 Woodhal Wynd. LIS # 9279455. | Y50: Street Lights | Z50: 925248 | AA50: 3817
A51: 13 | B51: 2016-09-25T19:53:22 | C51: 2016-09-25 | D51: 19:53:22 | E51: =_xlfn.IFNA(VLOOKUP($G51,Mapping!$C:$H,2,FALSE),"CHECK") -> -38.37384467 | F51: =_xlfn.IFNA(VLOOKUP($G51,Mapping!$C:$H,3,FALSE),"CHECK") -> 145.1212141 | G51: 1108209 | H51: =_xlfn.IFNA(VLOOKUP($G51,Mapping!$C:$H,6,FALSE),"CHECK") -> MTN32 | I51: Low voltage AC (<1kV) | J51: =_xlfn.IFNA(VLOOKUP($G51,Mapping!$C:$H,4,FALSE),"CHECK") -> Rural Short | K51: Asset failures resulting in asset fire (no grass/vegetation fire) : Other Assets | L51: - connection box | M51: three phase | N51: Started in or originated from a distribution system | O51: =_xlfn.IFNA(VLOOKUP($G51,Mapping!$C:$H,5,FALSE),"CHECK") -> LBRA | P51: LBRA only | Q51: 0.2 | R51: N | S51: =_xlfn.IFNA(VLOOKUP(C51,'Fire Rating'!$B:$C,2,FALSE),"") -> No forecast | T51: 0.1 | U51: 0.02 | V51: 5028 | W51: 20160927UTD_01 | X51: At Ftn-Flinders Rd Balnarring , replaced 3ph FMB and j/box, rehashed 3 ph U/G to #3080, fire report # 6582, lis # 1108209 | Y51: LV Isol/Mains Box/FMB | Z51: 926163 | AA51: 6582
A52: 14 | B52: 2016-10-01T23:20:01 | C52: 2016-10-01 | D52: 23:20:01 | E52: =_xlfn.IFNA(VLOOKUP($G52,Mapping!$C:$H,2,FALSE),"CHECK") -> -38.14638453 | F52: =_xlfn.IFNA(VLOOKUP($G52,Mapping!$C:$H,3,FALSE),"CHECK") -> 145.1291652 | G52: 8819096 | H52: =_xlfn.IFNA(VLOOKUP($G52,Mapping!$C:$H,6,FALSE),"CHECK") -> LWN35 | I52: Low voltage AC (<1kV) | J52: =_xlfn.IFNA(VLOOKUP($G52,Mapping!$C:$H,4,FALSE),"CHECK") -> Urban | K52: Asset failures resulting in asset fire (no grass/vegetation fire) : Other Assets | L52: - switch (any other type) | M52: three phase | N52: Started in or originated from a distribution system | O52: =_xlfn.IFNA(VLOOKUP($G52,Mapping!$C:$H,5,FALSE),"CHECK") -> LBRA | P52: LBRA only | Q52: 0.2 | R52: N | S52: =_xlfn.IFNA(VLOOKUP(C52,'Fire Rating'!$B:$C,2,FALSE),"") -> No forecast | T52: 0.1 | U52: 0.02 | V52: 5033 | W52: 20161007UTD_02 | X52: Krone switch burntout. replaced. LIS# 8819096 | Y52: Krone Box | Z52: 929480 | AA52: 5822
A53: 15 | B53: 2016-10-02T12:06:08 | C53: 2016-10-02 | D53: 12:06:08 | E53: =_xlfn.IFNA(VLOOKUP($G53,Mapping!$C:$H,2,FALSE),"CHECK") -> -37.94860915 | F53: =_xlfn.IFNA(VLOOKUP($G53,Mapping!$C:$H,3,FALSE),"CHECK") -> 145.0422353 | G53: 1819291 | H53: =_xlfn.IFNA(VLOOKUP($G53,Mapping!$C:$H,6,FALSE),"CHECK") -> CM 25 | I53: Low voltage AC (<1kV) | J53: =_xlfn.IFNA(VLOOKUP($G53,Mapping!$C:$H,4,FALSE),"CHECK") -> Urban | K53: Asset failures resulting in asset fire (no grass/vegetation fire) : Other Assets | L53: - connection box | M53: single phase | N53: Started in or originated from a distribution system | O53: =_xlfn.IFNA(VLOOKUP($G53,Mapping!$C:$H,5,FALSE),"CHECK") -> LBRA | P53: LBRA only | Q53: 0.2 | R53: N | S53: =_xlfn.IFNA(VLOOKUP(C53,'Fire Rating'!$B:$C,2,FALSE),"") -> No forecast | T53: 0.1 | U53: 0.02 | V53: 5052 | W53: 20161026UTD_02 | X53: Poles appear to have fire damage, removed hanging j/box at lis # 1819291. | Y53: LV Isol/Mains Box/FMB | Z53: 929641 | AA53: 2631
A54: 16 | B54: 2016-10-02T15:42:19 | C54: 2016-10-02 | D54: 15:42:19 | E54: =_xlfn.IFNA(VLOOKUP($G54,Mapping!$C:$H,2,FALSE),"CHECK") -> -37.85069973 | F54: =_xlfn.IFNA(VLOOKUP($G54,Mapping!$C:$H,3,FALSE),"CHECK") -> 145.043454 | G54: 2311940 | H54: =_xlfn.IFNA(VLOOKUP($G54,Mapping!$C:$H,6,FALSE),"CHECK") -> K 03 | I54: Low voltage AC (<1kV) | J54: =_xlfn.IFNA(VLOOKUP($G54,Mapping!$C:$H,4,FALSE),"CHECK") -> Urban | K54: Asset failures resulting in grass/vegetation fire : Other Assets | L54: - overhead conductor (bare; all aluminium conductor) | M54: three phase | N54: Started in or originated from a distribution system | O54: =_xlfn.IFNA(VLOOKUP($G54,Mapping!$C:$H,5,FALSE),"CHECK") -> LBRA | P54: LBRA only | Q54: 0.2 | R54: N | S54: =_xlfn.IFNA(VLOOKUP(C54,'Fire Rating'!$B:$C,2,FALSE),"") -> No forecast | T54: 0.1 | U54: 0.02 | V54: 5032 | W54: 20161007UTD_01 | X54: LV assets were clashing due to high winds, LV spreader fitted to prevent clashing, no follow up required, LIS 2311940 | Y54: Conductor Clashing | Z54: 929707 | AA54: 3814
A55: 17 | B55: 2016-10-10T03:48:22 | C55: 2016-10-10 | D55: 03:48:22 | E55: =_xlfn.IFNA(VLOOKUP($G55,Mapping!$C:$H,2,FALSE),"CHECK") -> -38.13464211 | F55: =_xlfn.IFNA(VLOOKUP($G55,Mapping!$C:$H,3,FALSE),"CHECK") -> 145.2284341 | G55: 9657245 | H55: =_xlfn.IFNA(VLOOKUP($G55,Mapping!$C:$H,6,FALSE),"CHECK") -> LWN21 | I55: 22kV AC | J55: =_xlfn.IFNA(VLOOKUP($G55,Mapping!$C:$H,4,FALSE),"CHECK") -> Rural Short | K55: Asset failures resulting in asset fire (no grass/vegetation fire) : Oil-filled plant fire | L55: - capacity balancing units | M55: three phase | N55: Started in or originated from a distribution system | O55: =_xlfn.IFNA(VLOOKUP($G55,Mapping!$C:$H,5,FALSE),"CHECK") -> HBRA | P55: HBRA only | Q55: 1 | R55: N | S55: =_xlfn.IFNA(VLOOKUP(C55,'Fire Rating'!$B:$C,2,FALSE),"") -> No forecast | T55: 0.1 | U55: 0.1 | V55: 5068 | W55: 20161108UTD_01 | X55: CAP DNG-HASTINGS CRANBOURNE failed and caught fire. Fire brigade called to extinguish pole. Lis # 9657245 | Y55: HV/LV Connection | Z55: 935412 | AA55: 7541
A56: 18 | B56: 2016-10-11T16:30:14 | C56: 2016-10-11 | D56: 16:30:14 | E56: =_xlfn.IFNA(VLOOKUP($G56,Mapping!$C:$H,2,FALSE),"CHECK") -> -37.90945887 | F56: =_xlfn.IFNA(VLOOKUP($G56,Mapping!$C:$H,3,FALSE),"CHECK") -> 145.2344655 | G56: 8808792 | H56: =_xlfn.IFNA(VLOOKUP($G56,Mapping!$C:$H,6,FALSE),"CHECK") -> FGY31 | I56: Low voltage AC (<1kV) | J56: =_xlfn.IFNA(VLOOKUP($G56,Mapping!$C:$H,4,FALSE),"CHECK") -> Urban | K56: Asset failures resulting in asset fire (no grass/vegetation fire) : Other Assets | L56: - connection box | M56: three phase | N56: Started in or originated from a distribution system | O56: =_xlfn.IFNA(VLOOKUP($G56,Mapping!$C:$H,5,FALSE),"CHECK") -> LBRA | P56: LBRA only | Q56: 0.2 | R56: N | S56: =_xlfn.IFNA(VLOOKUP(C56,'Fire Rating'!$B:$C,2,FALSE),"") -> No forecast | T56: 0.1 | U56: 0.02 | V56: 5040 | W56: 20161014UTD_01 | X56: Replace 3ph FMB which had caught fire on Lis # 8808792. | Y56: LV Isol/Mains Box/FMB | Z56: 936394 | AA56: 2630
A57: 19 | B57: 2016-10-15T14:16:24 | C57: 2016-10-15 | D57: 14:16:24 | E57: =_xlfn.IFNA(VLOOKUP($G57,Mapping!$C:$H,2,FALSE),"CHECK") -> -38.21600717 | F57: =_xlfn.IFNA(VLOOKUP($G57,Mapping!$C:$H,3,FALSE),"CHECK") -> 145.1240032 | G57: 1122093 | H57: =_xlfn.IFNA(VLOOKUP($G57,Mapping!$C:$H,6,FALSE),"CHECK") -> MTN22 | I57: 22kV AC | J57: =_xlfn.IFNA(VLOOKUP($G57,Mapping!$C:$H,4,FALSE),"CHECK") -> Rural Short | K57: Asset failures resulting in grass/vegetation fire : Other Assets | L57: - overhead conductor (ABC) | M57: three phase | N57: Started in or originated from a distribution system | O57: =_xlfn.IFNA(VLOOKUP($G57,Mapping!$C:$H,5,FALSE),"CHECK") -> HBRA | P57: HBRA only | Q57: 1 | R57: N | S57: =_xlfn.IFNA(VLOOKUP(C57,'Fire Rating'!$B:$C,2,FALSE),"") -> No forecast | T57: 0.1 | U57: 0.1 | V57: 5046 | W57: 20161019UTD_01 | X57: HV ABC cable down from Switch pole LIS #1122093, eramosa rd west/moorooduc - Evidence of grass fire 2m x 6m area opp on road reserve - fire out on arrival | Y57: HV ABC | Z57: 938278 | AA57: 6661
A58: 20 | B58: 2016-10-22T17:45:12 | C58: 2016-10-22 | D58: 17:45:12 | E58: =_xlfn.IFNA(VLOOKUP($G58,Mapping!$C:$H,2,FALSE),"CHECK") -> -37.92172871 | F58: =_xlfn.IFNA(VLOOKUP($G58,Mapping!$C:$H,3,FALSE),"CHECK") -> 145.0054416 | G58: 1804512 | H58: =_xlfn.IFNA(VLOOKUP($G58,Mapping!$C:$H,6,FALSE),"CHECK") -> NB 25 | I58: 11kV AC | J58: =_xlfn.IFNA(VLOOKUP($G58,Mapping!$C:$H,4,FALSE),"CHECK") -> Urban | K58: Grass/vegetation fires from assets (non-asset failures) : Fire starts in grass/vegetation resulting from trees contacting network assets | L58: - overhead conductor (bare; all aluminium conductor) | M58: three phase | N58: Started by any tree, or part of a tree, falling upon or coming into contact with a distribution system | O58: =_xlfn.IFNA(VLOOKUP($G58,Mapping!$C:$H,5,FALSE),"CHECK") -> LBRA | P58: LBRA only | Q58: 0.2 | R58: N | S58: =_xlfn.IFNA(VLOOKUP(C58,'Fire Rating'!$B:$C,2,FALSE),"") -> No forecast | T58: 0.1 | U58: 0.02 | V58: 5078 | W58: 20161116UTD_01 | X58: Crew isolated the O/Head so as to remove tree branch from the Conductor at pole Lis#1804512. Branch came from private tree at # 733 Hampton St. | Y58: Tree/Bark UE | Z58: 943511 | AA58: 1306
A59: 21 | B59: 2016-10-22T21:51:48 | C59: 2016-10-22 | D59: 21:51:48 | E59: =_xlfn.IFNA(VLOOKUP($G59,Mapping!$C:$H,2,FALSE),"CHECK") -> -37.95447666 | F59: =_xlfn.IFNA(VLOOKUP($G59,Mapping!$C:$H,3,FALSE),"CHECK") -> 145.0230016 | G59: 1822972 | H59: =_xlfn.IFNA(VLOOKUP($G59,Mapping!$C:$H,6,FALSE),"CHECK") -> SR 12 | I59: 11kV AC | J59: =_xlfn.IFNA(VLOOKUP($G59,Mapping!$C:$H,4,FALSE),"CHECK") -> Urban | K59: Asset failures resulting in asset fire (no grass/vegetation fire) : Pole and cross arm fire (including ‘smouldering’ or ‘smoke’) | L59: - insulators | M59: three phase | N59: Started in or originated from a distribution system | O59: =_xlfn.IFNA(VLOOKUP($G59,Mapping!$C:$H,5,FALSE),"CHECK") -> LBRA | P59: LBRA only | Q59: 0.2 | R59: N | S59: =_xlfn.IFNA(VLOOKUP(C59,'Fire Rating'!$B:$C,2,FALSE),"") -> No forecast | T59: 0.1 | U59: 0.02 | V59: 5059 | W59: 20161031UTD_03 | X59: Crew found sub pole Lis#1822972, damaged by pole fire. Centre Phase Disc eye bolt and Xarm King bolt burned out and pole requiring replacement. | Y59: Insulator Failure-Pole/Xarm Fire | Z59: 943643 | AA59: 2487
A60: 22 | B60: 2016-10-28T06:03:39 | C60: 2016-10-28 | D60: 06:03:39 | E60: =_xlfn.IFNA(VLOOKUP($G60,Mapping!$C:$H,2,FALSE),"CHECK") -> -38.05008679 | F60: =_xlfn.IFNA(VLOOKUP($G60,Mapping!$C:$H,3,FALSE),"CHECK") -> 145.2167794 | G60: 9953514 | H60: =_xlfn.IFNA(VLOOKUP($G60,Mapping!$C:$H,6,FALSE),"CHECK") -> DVY34 | I60: Low voltage AC (<1kV) | J60: =_xlfn.IFNA(VLOOKUP($G60,Mapping!$C:$H,4,FALSE),"CHECK") -> Urban | K60: Asset failures resulting in asset fire (no grass/vegetation fire) : Other Assets | L60: - lamps (major road) | M60: single phase | N60: Started in or originated from a distribution system | O60: =_xlfn.IFNA(VLOOKUP($G60,Mapping!$C:$H,5,FALSE),"CHECK") -> HBRA | P60: HBRA only | Q60: 1 | R60: N | S60: =_xlfn.IFNA(VLOOKUP(C60,'Fire Rating'!$B:$C,2,FALSE),"") -> No forecast | T60: 0.1 | U60: 0.1 | V60: 5061 | W60: 20161031UTD_05 | X60: As per mfb 150 HPS Lantern has caught fire, LIS #9953514 | Y60: Street Lights | Z60: 946777 | AA60: 7521
A61: 23 | B61: 2016-11-03T10:03:00 | C61: 2016-11-03 | D61: 10:03:00 | E61: =_xlfn.IFNA(VLOOKUP($G61,Mapping!$C:$H,2,FALSE),"CHECK") -> -38.36277886 | F61: =_xlfn.IFNA(VLOOKUP($G61,Mapping!$C:$H,3,FALSE),"CHECK") -> 145.0744494 | G61: 1107312 | H61: =_xlfn.IFNA(VLOOKUP($G61,Mapping!$C:$H,6,FALSE),"CHECK") -> MTN32 | I61: 22kV AC | J61: =_xlfn.IFNA(VLOOKUP($G61,Mapping!$C:$H,4,FALSE),"CHECK") -> Rural Short | K61: Asset failures resulting in asset fire (no grass/vegetation fire) : Other Assets | L61: - overhead conductor (ABC) | M61: three phase | N61: Started in or originated from a distribution system | O61: =_xlfn.IFNA(VLOOKUP($G61,Mapping!$C:$H,5,FALSE),"CHECK") -> HBRA | P61: HBRA only | Q61: 1 | R61: N | S61: =_xlfn.IFNA(VLOOKUP(C61,'Fire Rating'!$B:$C,2,FALSE),"") -> Low-moderate | T61: 0.1 | U61: 0.1 | V61: 5067 | W61: 20161104UTD_02 | X61: Linesman witnessed flame on LIS# 1107312 . The fire started on restoration of supply from a planned shutdown on the connection to the HV droppers which the linesman suspects were disturbed during the works. | Y61: HV/LV Connection | Z61: 953479 | AA61: 2488
A62: 24 | B62: 2016-11-04T16:37:56 | C62: 2016-11-04 | D62: 16:37:56 | E62: =_xlfn.IFNA(VLOOKUP($G62,Mapping!$C:$H,2,FALSE),"CHECK") -> -37.79694046 | F62: =_xlfn.IFNA(VLOOKUP($G62,Mapping!$C:$H,3,FALSE),"CHECK") -> 145.1698199 | G62: 7066298 | H62: =_xlfn.IFNA(VLOOKUP($G62,Mapping!$C:$H,6,FALSE),"CHECK") -> NW 23 | I62: Low voltage AC (<1kV) | J62: =_xlfn.IFNA(VLOOKUP($G62,Mapping!$C:$H,4,FALSE),"CHECK") -> Urban | K62: Asset failures resulting in grass/vegetation fire : Other Assets | L62: - overhead conductor (bare; all aluminium conductor) | M62: three phase | N62: Started in or originated from a distribution system | O62: =_xlfn.IFNA(VLOOKUP($G62,Mapping!$C:$H,5,FALSE),"CHECK") -> LBRA | P62: LBRA only | Q62: 0.2 | R62: N | S62: =_xlfn.IFNA(VLOOKUP(C62,'Fire Rating'!$B:$C,2,FALSE),"") -> High | T62: 0.1 | U62: 0.02 | V62: 5070 | W62: 20161108UTD_02 | X62: Blue phase tee off conductor contacted the red phase through line because of sloose hardware.Burnt grass 5cm x1.5 mtrs long on naturestrip o/s cnr Clems Rd & Tunstall Rd Donvale. LIS# 7066298 | Y62: Asset Failure Mechanical | Z62: 954211 | AA62: 3070
A63: 25 | B63: 2016-11-06T02:58:14 | C63: 2016-11-06 | D63: 02:58:14 | E63: =_xlfn.IFNA(VLOOKUP($G63,Mapping!$C:$H,2,FALSE),"CHECK") -> -37.9347102 | F63: =_xlfn.IFNA(VLOOKUP($G63,Mapping!$C:$H,3,FALSE),"CHECK") -> 145.0496035 | G63: 1824862 | H63: =_xlfn.IFNA(VLOOKUP($G63,Mapping!$C:$H,6,FALSE),"CHECK") -> MR 15 | I63: 11kV AC | J63: =_xlfn.IFNA(VLOOKUP($G63,Mapping!$C:$H,4,FALSE),"CHECK") -> Urban | K63: Asset failures resulting in asset fire (no grass/vegetation fire) : Pole and cross arm fire (including ‘smouldering’ or ‘smoke’) | L63: - insulators | M63: three phase | N63: Started in or originated from a distribution system | O63: =_xlfn.IFNA(VLOOKUP($G63,Mapping!$C:$H,5,FALSE),"CHECK") -> LBRA | P63: LBRA only | Q63: 0.2 | R63: N | S63: =_xlfn.IFNA(VLOOKUP(C63,'Fire Rating'!$B:$C,2,FALSE),"") -> Low-moderate | T63: 0.1 | U63: 0.02 | V63: 5072 | W63: 20161109UTD_03 | X63: Address is actually 589 South Rd, LIS 1824862 66KV Pole to be replaced burnt thru. | Y63: Insulator Failure-Pole/Xarm Fire | Z63: 955173 | AA63: 1043
A64: 26 | B64: 2016-11-06T06:02:02 | C64: 2016-11-06 | D64: 06:02:02 | E64: =_xlfn.IFNA(VLOOKUP($G64,Mapping!$C:$H,2,FALSE),"CHECK") -> -38.13324092 | F64: =_xlfn.IFNA(VLOOKUP($G64,Mapping!$C:$H,3,FALSE),"CHECK") -> 145.1277404 | G64: 3308414 | H64: =_xlfn.IFNA(VLOOKUP($G64,Mapping!$C:$H,6,FALSE),"CHECK") -> FTN21 | I64: 22kV AC | J64: =_xlfn.IFNA(VLOOKUP($G64,Mapping!$C:$H,4,FALSE),"CHECK") -> Urban | K64: Asset failures resulting in asset fire (no grass/vegetation fire) : Pole and cross arm fire (including ‘smouldering’ or ‘smoke’) | L64: - insulators | M64: three phase | N64: Started in or originated from a distribution system | O64: =_xlfn.IFNA(VLOOKUP($G64,Mapping!$C:$H,5,FALSE),"CHECK") -> LBRA | P64: LBRA only | Q64: 0.2 | R64: N | S64: =_xlfn.IFNA(VLOOKUP(C64,'Fire Rating'!$B:$C,2,FALSE),"") -> Low-moderate | T64: 0.1 | U64: 0.02 | V64: 5073 | W64: 20161111UTD_01 | X64: Broken cross arm at NEW TOOYAL S/S. LIS 3308414. Crew confirmed xarm fire caused by tracking at xarm strap. replaced xarm, fuse units and HV droppers. fire report 00083 | Y64: Insulator Failure-Pole/Xarm Fire | Z64: 955195 | AA64: 83
A65: 27 | B65: 2016-11-07T07:28:36 | C65: 2016-11-07 | D65: 07:28:36 | E65: =_xlfn.IFNA(VLOOKUP($G65,Mapping!$C:$H,2,FALSE),"CHECK") -> -38.24072113 | F65: =_xlfn.IFNA(VLOOKUP($G65,Mapping!$C:$H,3,FALSE),"CHECK") -> 145.0298121 | G65: 1102056 | H65: =_xlfn.IFNA(VLOOKUP($G65,Mapping!$C:$H,6,FALSE),"CHECK") -> MTN31 | I65: 22kV AC | J65: =_xlfn.IFNA(VLOOKUP($G65,Mapping!$C:$H,4,FALSE),"CHECK") -> Urban | K65: Asset failures resulting in asset fire (no grass/vegetation fire) : Pole and cross arm fire (including ‘smouldering’ or ‘smoke’) | L65: - insulators | M65: three phase | N65: Started in or originated from a distribution system | O65: =_xlfn.IFNA(VLOOKUP($G65,Mapping!$C:$H,5,FALSE),"CHECK") -> LBRA | P65: LBRA only | Q65: 0.2 | R65: N | S65: =_xlfn.IFNA(VLOOKUP(C65,'Fire Rating'!$B:$C,2,FALSE),"") -> High | T65: 0.1 | U65: 0.02 | V65: 5075 | W65: 20161114UTD_02 | X65: HV termination x-arm burnt through at x-arm strap bolt at FOOTWAY ESPLANADE S/S. LIS 1102056. Arm replaced under access permit. | Y65: Insulator Failure-Pole/Xarm Fire | Z65: 956629 | AA65: 1686
A66: 28 | B66: 2016-11-07T22:30:34 | C66: 2016-11-07 | D66: 22:30:34 | E66: =_xlfn.IFNA(VLOOKUP($G66,Mapping!$C:$H,2,FALSE),"CHECK") -> -37.89541982 | F66: =_xlfn.IFNA(VLOOKUP($G66,Mapping!$C:$H,3,FALSE),"CHECK") -> 145.0582947 | G66: 2321820 | H66: =_xlfn.IFNA(VLOOKUP($G66,Mapping!$C:$H,6,FALSE),"CHECK") -> OR 25 | I66: Low voltage AC (<1kV) | J66: =_xlfn.IFNA(VLOOKUP($G66,Mapping!$C:$H,4,FALSE),"CHECK") -> Urban | K66: Asset failures resulting in asset fire (no grass/vegetation fire) : Other Assets | L66: - connection box | M66: single phase | N66: Started in or originated from a distribution system | O66: =_xlfn.IFNA(VLOOKUP($G66,Mapping!$C:$H,5,FALSE),"CHECK") -> LBRA | P66: LBRA only | Q66: 0.2 | R66: N | S66: =_xlfn.IFNA(VLOOKUP(C66,'Fire Rating'!$B:$C,2,FALSE),"") -> High | T66: 0.1 | U66: 0.02 | V66: 5079 | W66: 20161116UTD_02 | X66: Fuse base for unit 1 had melted/on fire when crews arrived - fire report created by crew - replaced 2 x 100a fuse bases at meterpanle for unit 1 and 2 - tested ande cofiremd supply restored to both units. LIS 2321820 | Y66: Meter or Meterboard | Z66: 957451 | AA66: 1564
A67: 29 | B67: 2016-11-17T05:54:52 | C67: 2016-11-17 | D67: 05:54:52 | E67: =_xlfn.IFNA(VLOOKUP($G67,Mapping!$C:$H,2,FALSE),"CHECK") -> -37.97091778 | F67: =_xlfn.IFNA(VLOOKUP($G67,Mapping!$C:$H,3,FALSE),"CHECK") -> 145.1754971 | G67: 618397 | H67: =_xlfn.IFNA(VLOOKUP($G67,Mapping!$C:$H,6,FALSE),"CHECK") -> NP 25 | I67: 22kV AC | J67: =_xlfn.IFNA(VLOOKUP($G67,Mapping!$C:$H,4,FALSE),"CHECK") -> Urban | K67: Asset failures resulting in asset fire (no grass/vegetation fire) : Oil-filled plant fire | L67: - capacity balancing units | M67: three phase | N67: Started in or originated from a distribution system | O67: =_xlfn.IFNA(VLOOKUP($G67,Mapping!$C:$H,5,FALSE),"CHECK") -> LBRA | P67: LBRA only | Q67: 0.2 | R67: N | S67: =_xlfn.IFNA(VLOOKUP(C67,'Fire Rating'!$B:$C,2,FALSE),"") -> High | T67: 0.1 | U67: 0.02 | V67: 5083 | W67: 20161121UTD_01 | X67: Cap bank blown up on pole - no fire damage to pole - centre phase HV dropper burnt off at the Vac Switch. LIS 0618397 | Y67: HV/LV Connection | Z67: 961373 | AA67: 7561
A68: 30 | B68: 2016-11-22T11:05:03 | C68: 2016-11-22 | D68: 11:05:03 | E68: =_xlfn.IFNA(VLOOKUP($G68,Mapping!$C:$H,2,FALSE),"CHECK") -> -38.12959013 | F68: =_xlfn.IFNA(VLOOKUP($G68,Mapping!$C:$H,3,FALSE),"CHECK") -> 145.129934 | G68: 3308361 | H68: =_xlfn.IFNA(VLOOKUP($G68,Mapping!$C:$H,6,FALSE),"CHECK") -> FTN21 | I68: Low voltage AC (<1kV) | J68: =_xlfn.IFNA(VLOOKUP($G68,Mapping!$C:$H,4,FALSE),"CHECK") -> Urban | K68: Asset failures resulting in asset fire (no grass/vegetation fire) : Other Assets | L68: - connection box | M68: three phase | N68: Started in or originated from a distribution system | O68: =_xlfn.IFNA(VLOOKUP($G68,Mapping!$C:$H,5,FALSE),"CHECK") -> LBRA | P68: LBRA only | Q68: 0.2 | R68: N | S68: =_xlfn.IFNA(VLOOKUP(C68,'Fire Rating'!$B:$C,2,FALSE),"") -> Low-moderate | T68: 0.1 | U68: 0.02 | V68: 5085 | W68: 20161124UTD_01 | X68: Replaced 3 ph FMB on lis # 3308361, cause overloaded, Fire Report # 01871, feeding FTN 4x4 and Light Commercial, tested and left on. | Y68: LV Isol/Mains Box/FMB | Z68: 963114 | AA68: 1871
A69: 31 | B69: 2016-11-22T12:20:48 | C69: 2016-11-22 | D69: 12:20:48 | E69: =_xlfn.IFNA(VLOOKUP($G69,Mapping!$C:$H,2,FALSE),"CHECK") -> -38.37209011 | F69: =_xlfn.IFNA(VLOOKUP($G69,Mapping!$C:$H,3,FALSE),"CHECK") -> 144.8873212 | G69: 1311762 | H69: =_xlfn.IFNA(VLOOKUP($G69,Mapping!$C:$H,6,FALSE),"CHECK") -> RBD11 | I69: 22kV AC | J69: =_xlfn.IFNA(VLOOKUP($G69,Mapping!$C:$H,4,FALSE),"CHECK") -> Urban | K69: Grass/vegetation fires from assets (non-asset failures) : Fire starts in grass/vegetation resulting from trees contacting network assets | L69: - overhead conductor (bare; all aluminium conductor) | M69: three phase | N69: Started by any tree, or part of a tree, falling upon or coming into contact with a distribution system | O69: =_xlfn.IFNA(VLOOKUP($G69,Mapping!$C:$H,5,FALSE),"CHECK") -> LBRA | P69: LBRA only | Q69: 0.2 | R69: N | S69: =_xlfn.IFNA(VLOOKUP(C69,'Fire Rating'!$B:$C,2,FALSE),"") -> Low-moderate | T69: 0.1 | U69: 0.02 | V69: 5086 | W69: 20161201UTD_01 | X69: Tree in nature strip on HV O/H in Allambi Crescent outside #8 adjacent to LIS# 1311762. No damage to assets. Tree was cut back by crew and supply restored from SCADA. | Y69: Tree/Bark ORP | Z69: 963151 | AA69: 3231
A70: 32 | B70: 2016-12-02T11:39:00 | C70: 2016-12-02 | D70: 11:39:00 | E70: =_xlfn.IFNA(VLOOKUP($G70,Mapping!$C:$H,2,FALSE),"CHECK") -> -38.10339542 | F70: =_xlfn.IFNA(VLOOKUP($G70,Mapping!$C:$H,3,FALSE),"CHECK") -> 145.127983 | G70: 3305954 | H70: =_xlfn.IFNA(VLOOKUP($G70,Mapping!$C:$H,6,FALSE),"CHECK") -> CRM33 | I70: Low voltage AC (<1kV) | J70: =_xlfn.IFNA(VLOOKUP($G70,Mapping!$C:$H,4,FALSE),"CHECK") -> Urban | K70: Asset failures resulting in asset fire (no grass/vegetation fire) : Other Assets | L70: - connector / termination | M70: three phase | N70: Started in or originated from a distribution system | O70: =_xlfn.IFNA(VLOOKUP($G70,Mapping!$C:$H,5,FALSE),"CHECK") -> LBRA | P70: LBRA only | Q70: 0.2 | R70: N | S70: =_xlfn.IFNA(VLOOKUP(C70,'Fire Rating'!$B:$C,2,FALSE),"") -> Low-moderate | T70: 0.1 | U70: 0.02 | V70: 5098 | W70: 20161214UTD_02 | X70: LIS - 3305954 LV bundles terminat at pole, services IPC have caught fire, no fire at ground level. | Y70: HV/LV Connection | Z70: 968869 | AA70: 7562
A71: 33 | B71: 2016-12-03T09:05:00 | C71: =DATEVALUE(DAY(B71) & "/" & MONTH(B71) & "/" & YEAR(B71)) -> 2016-12-03 | D71: =TIME(HOUR(B71),MINUTE(B71),SECOND(B71)) -> 09:05:00 | E71: =_xlfn.IFNA(VLOOKUP($G71,Mapping!$C:$H,2,FALSE),"CHECK") -> -38.2225019 | F71: =_xlfn.IFNA(VLOOKUP($G71,Mapping!$C:$H,3,FALSE),"CHECK") -> 145.2449385 | G71: 9866573 | H71: =_xlfn.IFNA(VLOOKUP($G71,Mapping!$C:$H,6,FALSE),"CHECK") -> HGS33 | I71: 22kV AC | J71: =_xlfn.IFNA(VLOOKUP($G71,Mapping!$C:$H,4,FALSE),"CHECK") -> Rural Short | K71: Asset failures resulting in grass/vegetation fire : Other Assets | L71: - overhead conductor (bare; steel) | M71: three phase | N71: Started in or originated from a distribution system | O71: =_xlfn.IFNA(VLOOKUP($G71,Mapping!$C:$H,5,FALSE),"CHECK") -> HBRA | P71: HBRA only | Q71: =IF(P71="","",IF(P71="LBRA only",0.2,IF(P71="HBRA only",1,IF(P71="within electric line construction area",19.8,IF(P71="within area delineated on plan LEGL./16-354",4.6,""))))) -> 1 | R71: N | S71: =_xlfn.IFNA(VLOOKUP(C71,'Fire Rating'!$B:$C,2,FALSE),"") -> Low-moderate | T71: =IF(S71="","",IF(S71="No forecast",0.1,IF(R71="N",0.1,IF(S71="Low-moderate",0.2,IF(S71="High",0.5,IF(S71="Very high",1,IF(S71="Severe",2,IF(S71="Extreme",3.5,5)))))))) -> 0.1 | U71: =IF(OR(Q71="",T71=""),"",IF(AND(P71="within electric line construction area",S71="No forecast"),1,Q71*T71)) -> 0.1 | V71: 5100 | W71: 20161221UTD_01 | X71: Conductor down - still sparking when crews arrived, burn marks on ground, no other grass ignition- Conductor on deck in the bay west of spur fuses (Lis 9866573) has burnt through splice. | Y71: HV/LV Conductor | Z71: 969152 | AA71: 2324
A72: 34 | B72: 2016-12-08T16:32:04 | C72: 2016-12-08 | D72: 16:32:04 | E72: =_xlfn.IFNA(VLOOKUP($G72,Mapping!$C:$H,2,FALSE),"CHECK") -> -38.02423551 | F72: =_xlfn.IFNA(VLOOKUP($G72,Mapping!$C:$H,3,FALSE),"CHECK") -> 145.1001563 | G72: 3302312 | H72: =_xlfn.IFNA(VLOOKUP($G72,Mapping!$C:$H,6,FALSE),"CHECK") -> MC 01 | I72: 22kV AC | J72: =_xlfn.IFNA(VLOOKUP($G72,Mapping!$C:$H,4,FALSE),"CHECK") -> Urban | K72: Asset failures resulting in asset fire (no grass/vegetation fire) : Other Assets | L72: - insulator tie wires / connections | M72: three phase | N72: Started by any other thing forming part of or coming into contact with a distribution system | O72: =_xlfn.IFNA(VLOOKUP($G72,Mapping!$C:$H,5,FALSE),"CHECK") -> LBRA | P72: LBRA only | Q72: 0.2 | R72: N | S72: =_xlfn.IFNA(VLOOKUP(C72,'Fire Rating'!$B:$C,2,FALSE),"") -> High | T72: 0.1 | U72: 0.02 | V72: 5107 | W72: 20161220UTD_01 | X72: Suspect: car hit pole at a prior date . HV ties broken , Conductor touching pole cap, Fire at LV king bolt. LIS#3302312, Pole replaced. | Y72: Third Party | Z72: 971597 | AA72: 707
A73: 35 | B73: 2016-12-09T08:56:00 | C73: 2016-12-09 | D73: 08:56:00 | E73: =_xlfn.IFNA(VLOOKUP($G73,Mapping!$C:$H,2,FALSE),"CHECK") -> -37.95809904 | F73: =_xlfn.IFNA(VLOOKUP($G73,Mapping!$C:$H,3,FALSE),"CHECK") -> 145.14448 | G73: 613176 | H73: =_xlfn.IFNA(VLOOKUP($G73,Mapping!$C:$H,6,FALSE),"CHECK") -> SS 13 | I73: 22kV AC | J73: =_xlfn.IFNA(VLOOKUP($G73,Mapping!$C:$H,4,FALSE),"CHECK") -> Urban | K73: Asset failures resulting in asset fire (no grass/vegetation fire) : Pole and cross arm fire (including ‘smouldering’ or ‘smoke’) | L73: - insulators | M73: three phase | N73: Started in or originated from a distribution system | O73: =_xlfn.IFNA(VLOOKUP($G73,Mapping!$C:$H,5,FALSE),"CHECK") -> LBRA | P73: LBRA only | Q73: 0.2 | R73: N | S73: =_xlfn.IFNA(VLOOKUP(C73,'Fire Rating'!$B:$C,2,FALSE),"") -> Low-moderate | T73: 0.1 | U73: 0.02 | V73: 5108 | W73: 20161220UTD_02 | X73: Pole fire on LIS # 0613176. HV LV tee off . Burnt at the arm strap for the HV tee xarm and burnt the LV inter. | Y73: Insulator Failure-Pole/Xarm Fire | Z73: 972290 | AA73: 1307
A74: 36 | B74: 2016-12-12T11:18:16 | C74: 2016-12-12 | D74: 11:18:16 | E74: =_xlfn.IFNA(VLOOKUP($G74,Mapping!$C:$H,2,FALSE),"CHECK") -> -37.86346872 | F74: =_xlfn.IFNA(VLOOKUP($G74,Mapping!$C:$H,3,FALSE),"CHECK") -> 145.0805514 | G74: 2300413 | H74: =_xlfn.IFNA(VLOOKUP($G74,Mapping!$C:$H,6,FALSE),"CHECK") -> EM 05 | I74: Low voltage AC (<1kV) | J74: =_xlfn.IFNA(VLOOKUP($G74,Mapping!$C:$H,4,FALSE),"CHECK") -> Urban | K74: Asset failures resulting in asset fire (no grass/vegetation fire) : Other Assets | L74: - connection box | M74: three phase | N74: Started in or originated from a distribution system | O74: =_xlfn.IFNA(VLOOKUP($G74,Mapping!$C:$H,5,FALSE),"CHECK") -> LBRA | P74: LBRA only | Q74: 0.2 | R74: N | S74: =_xlfn.IFNA(VLOOKUP(C74,'Fire Rating'!$B:$C,2,FALSE),"") -> High | T74: 0.1 | U74: 0.02 | V74: 5142 | W74: 20170117UTD_04 | X74: 3 phase fmb on pole LIS 2300413 - likely loose connection | Y74: LV Isol/Mains Box/FMB | Z74: 973761 | AA74: 3818
A75: 37 | B75: 2016-12-18T13:29:29 | C75: 2016-12-18 | D75: 13:29:29 | E75: =_xlfn.IFNA(VLOOKUP($G75,Mapping!$C:$H,2,FALSE),"CHECK") -> -37.98743722 | F75: =_xlfn.IFNA(VLOOKUP($G75,Mapping!$C:$H,3,FALSE),"CHECK") -> 145.0704319 | G75: 1809060 | H75: =_xlfn.IFNA(VLOOKUP($G75,Mapping!$C:$H,6,FALSE),"CHECK") -> M 35 | I75: 11kV AC | J75: =_xlfn.IFNA(VLOOKUP($G75,Mapping!$C:$H,4,FALSE),"CHECK") -> Urban | K75: Grass/vegetation fires from assets (non-asset failures) : Fire starts in grass/vegetation resulting from other causes (vehicle strikes, vandalism etc) | L75: - connector / termination | M75: three phase | N75: Started by any other thing forming part of or coming into contact with a distribution system | O75: =_xlfn.IFNA(VLOOKUP($G75,Mapping!$C:$H,5,FALSE),"CHECK") -> LBRA | P75: LBRA only | Q75: 0.2 | R75: N | S75: =_xlfn.IFNA(VLOOKUP(C75,'Fire Rating'!$B:$C,2,FALSE),"") -> Low-moderate | T75: 0.1 | U75: 0.02 | V75: 5113 | W75: 20161222UTD_02 | X75: Customer reports of balloons into O/H line and this likely cause a conductor to fail due to wrappon burning and ampact connector failing at pole LIS 1809060. Conductor down at pole LIS1809059 (hv conductor started small grass fire) | Y75: Third Party | Z75: 976524 | AA75: 6701
A76: 38 | B76: 2016-12-20T08:42:21 | C76: 2016-12-20 | D76: 08:42:21 | E76: =_xlfn.IFNA(VLOOKUP($G76,Mapping!$C:$H,2,FALSE),"CHECK") -> -37.91680997 | F76: =_xlfn.IFNA(VLOOKUP($G76,Mapping!$C:$H,3,FALSE),"CHECK") -> 144.9892546 | G76: 1805954 | H76: =_xlfn.IFNA(VLOOKUP($G76,Mapping!$C:$H,6,FALSE),"CHECK") -> MR 32 | I76: 11kV AC | J76: =_xlfn.IFNA(VLOOKUP($G76,Mapping!$C:$H,4,FALSE),"CHECK") -> Urban | K76: Asset failures resulting in asset fire (no grass/vegetation fire) : Pole and cross arm fire (including ‘smouldering’ or ‘smoke’) | L76: - insulators | M76: three phase | N76: Started in or originated from a distribution system | O76: =_xlfn.IFNA(VLOOKUP($G76,Mapping!$C:$H,5,FALSE),"CHECK") -> LBRA | P76: LBRA only | Q76: 0.2 | R76: Y | S76: =_xlfn.IFNA(VLOOKUP(C76,'Fire Rating'!$B:$C,2,FALSE),"") -> High | T76: 0.5 | U76: 0.1 | V76: 5117 | W76: 20161228UTD_02 | X76: HV x-arm burnt through and HV conductor resting on LV x-arm. LIS 18059954, HV xarm replaced due to fire damage appears to have been caused by tracking. | Y76: Insulator Failure-Pole/Xarm Fire | Z76: 977295 | AA76: 3842
A77: 39 | B77: 2016-12-20T09:38:00 | C77: 2016-12-20 | D77: 09:38:00 | E77: =_xlfn.IFNA(VLOOKUP($G77,Mapping!$C:$H,2,FALSE),"CHECK") -> -37.98794907 | F77: =_xlfn.IFNA(VLOOKUP($G77,Mapping!$C:$H,3,FALSE),"CHECK") -> 145.1990572 | G77: 634920 | H77: =_xlfn.IFNA(VLOOKUP($G77,Mapping!$C:$H,6,FALSE),"CHECK") -> KBH31 | I77: 22kV AC | J77: =_xlfn.IFNA(VLOOKUP($G77,Mapping!$C:$H,4,FALSE),"CHECK") -> Urban | K77: Asset failures resulting in asset fire (no grass/vegetation fire) : Pole and cross arm fire (including ‘smouldering’ or ‘smoke’) | L77: - insulators | M77: three phase | N77: Started in or originated from a distribution system | O77: =_xlfn.IFNA(VLOOKUP($G77,Mapping!$C:$H,5,FALSE),"CHECK") -> LBRA | P77: LBRA only | Q77: 0.2 | R77: Y | S77: =_xlfn.IFNA(VLOOKUP(C77,'Fire Rating'!$B:$C,2,FALSE),"") -> High | T77: 0.5 | U77: 0.1 | V77: 5118 | W77: 20161228UTD_03 | X77: Downer spotter confirmed pole fire at LIS#0634920 BENNET N40 VEREY S/S. Crew replaced pole and x-arms in area | Y77: Insulator Failure-Pole/Xarm Fire | Z77: 977321 | AA77: 7581
A78: 40 | B78: 2016-12-24T03:18:31 | C78: 2016-12-24 | D78: 03:18:31 | E78: =_xlfn.IFNA(VLOOKUP($G78,Mapping!$C:$H,2,FALSE),"CHECK") -> -37.88635606 | F78: =_xlfn.IFNA(VLOOKUP($G78,Mapping!$C:$H,3,FALSE),"CHECK") -> 145.1418188 | G78: 602729 | H78: =_xlfn.IFNA(VLOOKUP($G78,Mapping!$C:$H,6,FALSE),"CHECK") -> GW 03 | I78: 22kV AC | J78: =_xlfn.IFNA(VLOOKUP($G78,Mapping!$C:$H,4,FALSE),"CHECK") -> Urban | K78: Asset failures resulting in asset fire (no grass/vegetation fire) : Other Assets | L78: - dropper / bridge | M78: three phase | N78: Started by any person, bird, reptile or other animal coming into contact with a distribution system | O78: =_xlfn.IFNA(VLOOKUP($G78,Mapping!$C:$H,5,FALSE),"CHECK") -> LBRA | P78: LBRA only | Q78: 0.2 | R78: Y | S78: =_xlfn.IFNA(VLOOKUP(C78,'Fire Rating'!$B:$C,2,FALSE),"") -> High | T78: 0.5 | U78: 0.1 | V78: 5122 | W78: 20161229UTD_01 | X78: Possum CAUSED FLASHOVER AT Pole tee to Coolarn Waverley S/S, Fire brigade attended, pole badly damaged, section had to be interrupted- pole lis # 0602729 pole HV & LV T-off /inter requires to be replaced 2 | Y78: Bird/Animal | Z78: 978966 | AA78: 2767
A79: 41 | B79: 2016-12-24T12:07:02 | C79: 2016-12-24 | D79: 12:07:02 | E79: =_xlfn.IFNA(VLOOKUP($G79,Mapping!$C:$H,2,FALSE),"CHECK") -> -38.40071361 | F79: =_xlfn.IFNA(VLOOKUP($G79,Mapping!$C:$H,3,FALSE),"CHECK") -> 144.9949184 | G79: 1313961 | H79: =_xlfn.IFNA(VLOOKUP($G79,Mapping!$C:$H,6,FALSE),"CHECK") -> DMA23 | I79: Low voltage AC (<1kV) | J79: =_xlfn.IFNA(VLOOKUP($G79,Mapping!$C:$H,4,FALSE),"CHECK") -> Rural Short | K79: Asset failures resulting in grass/vegetation fire : Other Assets | L79: - connector / termination | M79: single phase | N79: Started in or originated from a distribution system | O79: =_xlfn.IFNA(VLOOKUP($G79,Mapping!$C:$H,5,FALSE),"CHECK") -> HBRA | P79: HBRA only | Q79: 1 | R79: Y | S79: =_xlfn.IFNA(VLOOKUP(C79,'Fire Rating'!$B:$C,2,FALSE),"") -> High | T79: 0.5 | U79: 0.5 | V79: 5120 | W79: 20161228UTD_04 | X79: lis: 1313961 - replaced blue phs ipc clamp for u/g supply - all ok now. - small grass fire - approx 1 sq meter at base of pole | Y79: HV/LV Connection | Z79: 978996 | AA79: 2283
A80: 42 | B80: 2016-12-28T12:59:36 | C80: 2016-12-28 | D80: 12:59:36 | E80: =_xlfn.IFNA(VLOOKUP($G80,Mapping!$C:$H,2,FALSE),"CHECK") -> -37.9665945 | F80: =_xlfn.IFNA(VLOOKUP($G80,Mapping!$C:$H,3,FALSE),"CHECK") -> 145.0808443 | G80: 1813390 | H80: =_xlfn.IFNA(VLOOKUP($G80,Mapping!$C:$H,6,FALSE),"CHECK") -> HT 01 | I80: 22kV AC | J80: =_xlfn.IFNA(VLOOKUP($G80,Mapping!$C:$H,4,FALSE),"CHECK") -> Urban | K80: Asset failures resulting in asset fire (no grass/vegetation fire) : Pole and cross arm fire (including ‘smouldering’ or ‘smoke’) | L80: - insulators | M80: three phase | N80: Started in or originated from a distribution system | O80: =_xlfn.IFNA(VLOOKUP($G80,Mapping!$C:$H,5,FALSE),"CHECK") -> LBRA | P80: LBRA only | Q80: 0.2 | R80: Y | S80: =_xlfn.IFNA(VLOOKUP(C80,'Fire Rating'!$B:$C,2,FALSE),"") -> Very high | T80: 1 | U80: 0.2 | V80: 5136 | W80: 20170113UTD_01 | X80: LIS - 1813390 HV termination x-arm to be replaced. PM#1000574381 repairs carried out | Y80: Insulator Failure-Pole/Xarm Fire | Z80: 979782 | AA80: 3869
A81: 43 | B81: 2017-01-04T22:12:00 | C81: 2017-01-04 | D81: 22:12:00 | E81: =_xlfn.IFNA(VLOOKUP($G81,Mapping!$C:$H,2,FALSE),"CHECK") -> -37.88732976 | F81: =_xlfn.IFNA(VLOOKUP($G81,Mapping!$C:$H,3,FALSE),"CHECK") -> 145.0003921 | G81: 2308669 | H81: =_xlfn.IFNA(VLOOKUP($G81,Mapping!$C:$H,6,FALSE),"CHECK") -> EW 03 | I81: 11kV AC | J81: =_xlfn.IFNA(VLOOKUP($G81,Mapping!$C:$H,4,FALSE),"CHECK") -> Urban | K81: Grass/vegetation fires from assets (non-asset failures) : Fire starts in grass/vegetation resulting from animal contact with network assets | L81: - dropper / bridge | M81: three phase | N81: Started by any person, bird, reptile or other animal coming into contact with a distribution system | O81: =_xlfn.IFNA(VLOOKUP($G81,Mapping!$C:$H,5,FALSE),"CHECK") -> LBRA | P81: LBRA only | Q81: 0.2 | R81: Y | S81: =_xlfn.IFNA(VLOOKUP(C81,'Fire Rating'!$B:$C,2,FALSE),"") -> High | T81: 0.5 | U81: 0.1 | V81: 5161 | W81: 20170206UTD_01 | X81: Possum at CHP to Nepean-McMillan s/s possum damaged cable head, blew R Ph bridge at HV Tee off in Nepean Hwy cnr of Glendora Ave, Very small patch of grass (approx 3cm sq) had burn mark due to fallout from fuse bridge blowing. | Y81: Bird/Animal | Z81: 984213 | AA81: 1313
A82: 44 | B82: 2017-01-05T12:50:21 | C82: 2017-01-05 | D82: 12:50:21 | E82: =_xlfn.IFNA(VLOOKUP($G82,Mapping!$C:$H,2,FALSE),"CHECK") -> -38.37628916 | F82: =_xlfn.IFNA(VLOOKUP($G82,Mapping!$C:$H,3,FALSE),"CHECK") -> 144.7886154 | G82: 8831884 | H82: =_xlfn.IFNA(VLOOKUP($G82,Mapping!$C:$H,6,FALSE),"CHECK") -> STO14 | I82: Low voltage AC (<1kV) | J82: =_xlfn.IFNA(VLOOKUP($G82,Mapping!$C:$H,4,FALSE),"CHECK") -> Urban | K82: Asset failures resulting in asset fire (no grass/vegetation fire) : Other Assets | L82: - connection box | M82: single phase | N82: Started in or originated from a distribution system | O82: =_xlfn.IFNA(VLOOKUP($G82,Mapping!$C:$H,5,FALSE),"CHECK") -> LBRA | P82: LBRA only | Q82: 0.2 | R82: Y | S82: =_xlfn.IFNA(VLOOKUP(C82,'Fire Rating'!$B:$C,2,FALSE),"") -> High | T82: 0.5 | U82: 0.1 | V82: 5131 | W82: 20170109UTD_05 | X82: 501 AMI mtr caught fire at load tails, replaced mtr fire ign rep - LIS - 8831884 | Y82: Meter or Meterboard | Z82: 984541 | AA82: 2063
A83: 45 | B83: 2017-01-18T06:45:47 | C83: 2017-01-18 | D83: 06:45:47 | E83: =_xlfn.IFNA(VLOOKUP($G83,Mapping!$C:$H,2,FALSE),"CHECK") -> -37.79806146 | F83: =_xlfn.IFNA(VLOOKUP($G83,Mapping!$C:$H,3,FALSE),"CHECK") -> 145.1603826 | G83: 7066961 | H83: =_xlfn.IFNA(VLOOKUP($G83,Mapping!$C:$H,6,FALSE),"CHECK") -> NW 23 | I83: 22kV AC | J83: =_xlfn.IFNA(VLOOKUP($G83,Mapping!$C:$H,4,FALSE),"CHECK") -> Urban | K83: Asset failures resulting in asset fire (no grass/vegetation fire) : Pole and cross arm fire (including ‘smouldering’ or ‘smoke’) | L83: - insulators | M83: three phase | N83: Started in or originated from a distribution system | O83: =_xlfn.IFNA(VLOOKUP($G83,Mapping!$C:$H,5,FALSE),"CHECK") -> LBRA | P83: LBRA only | Q83: 0.2 | R83: Y | S83: =_xlfn.IFNA(VLOOKUP(C83,'Fire Rating'!$B:$C,2,FALSE),"") -> High | T83: 0.5 | U83: 0.1 | V83: 5144 | W83: 20170119UTD_02 | X83: End of Strain Xarm burnt off in Blackburn Rd Cnr Glenview..LIS#7066961. Grey porcelain disc insulators & Brown fog bridging insulators. | Y83: Insulator Failure-Pole/Xarm Fire | Z83: 991717 | AA83: 2769
A84: 46 | B84: 2017-01-19T13:02:00 | C84: 2017-01-19 | D84: 13:02:00 | E84: =_xlfn.IFNA(VLOOKUP($G84,Mapping!$C:$H,2,FALSE),"CHECK") -> -37.94203776 | F84: =_xlfn.IFNA(VLOOKUP($G84,Mapping!$C:$H,3,FALSE),"CHECK") -> 145.121892 | G84: 611069 | H84: =_xlfn.IFNA(VLOOKUP($G84,Mapping!$C:$H,6,FALSE),"CHECK") -> SS 21 | I84: Low voltage AC (<1kV) | J84: =_xlfn.IFNA(VLOOKUP($G84,Mapping!$C:$H,4,FALSE),"CHECK") -> Urban | K84: Asset failures resulting in asset fire (no grass/vegetation fire) : Other Assets | L84: - switch (any other type) | M84: three phase | N84: Started in or originated from a distribution system | O84: =_xlfn.IFNA(VLOOKUP($G84,Mapping!$C:$H,5,FALSE),"CHECK") -> LBRA | P84: LBRA only | Q84: 0.2 | R84: Y | S84: =_xlfn.IFNA(VLOOKUP(C84,'Fire Rating'!$B:$C,2,FALSE),"") -> High | T84: 0.5 | U84: 0.1 | V84: 5145 | W84: 20170124UTD_01 | X84: Repalced burnt out krone box, new 160amp din fuses. cause unknown, krone box was melted. LIS3 0611069 | Y84: Krone Box | Z84: 992356 | AA84: 1308
A85: 47 | B85: 2017-01-20T07:27:17 | C85: 2017-01-20 | D85: 07:27:17 | E85: =_xlfn.IFNA(VLOOKUP($G85,Mapping!$C:$H,2,FALSE),"CHECK") -> -37.9476569 | F85: =_xlfn.IFNA(VLOOKUP($G85,Mapping!$C:$H,3,FALSE),"CHECK") -> 145.0742741 | G85: 1816379 | H85: =_xlfn.IFNA(VLOOKUP($G85,Mapping!$C:$H,6,FALSE),"CHECK") -> HT 13 | I85: 22kV AC | J85: =_xlfn.IFNA(VLOOKUP($G85,Mapping!$C:$H,4,FALSE),"CHECK") -> Urban | K85: Asset failures resulting in asset fire (no grass/vegetation fire) : Other Assets | L85: - connector / termination | M85: three phase | N85: Started by any person, bird, reptile or other animal coming into contact with a distribution system | O85: =_xlfn.IFNA(VLOOKUP($G85,Mapping!$C:$H,5,FALSE),"CHECK") -> LBRA | P85: LBRA only | Q85: 0.2 | R85: Y | S85: =_xlfn.IFNA(VLOOKUP(C85,'Fire Rating'!$B:$C,2,FALSE),"") -> High | T85: 0.5 | U85: 0.1 | V85: 5162 | W85: 20170206UTD_02 | X85: A Possum caused a Hv fuse to blow bl ph at cap bank blown off lead. LIS 1816379 | Y85: Bird/Animal | Z85: 993159 | AA85: 1312
A86: 48 | B86: 2017-01-23T10:28:58 | C86: 2017-01-23 | D86: 10:28:58 | E86: =_xlfn.IFNA(VLOOKUP($G86,Mapping!$C:$H,2,FALSE),"CHECK") -> -38.14706201 | F86: =_xlfn.IFNA(VLOOKUP($G86,Mapping!$C:$H,3,FALSE),"CHECK") -> 145.1443146 | G86: 3319689 | H86: =_xlfn.IFNA(VLOOKUP($G86,Mapping!$C:$H,6,FALSE),"CHECK") -> LWN24 | I86: Low voltage AC (<1kV) | J86: =_xlfn.IFNA(VLOOKUP($G86,Mapping!$C:$H,4,FALSE),"CHECK") -> Urban | K86: Asset failures resulting in asset fire (no grass/vegetation fire) : Other Assets | L86: - connector / termination | M86: single phase | N86: Started in or originated from a distribution system | O86: =_xlfn.IFNA(VLOOKUP($G86,Mapping!$C:$H,5,FALSE),"CHECK") -> LBRA | P86: LBRA only | Q86: 0.2 | R86: Y | S86: =_xlfn.IFNA(VLOOKUP(C86,'Fire Rating'!$B:$C,2,FALSE),"") -> High | T86: 0.5 | U86: 0.1 | V86: 5148 | W86: 20170124UTD_02 | X86: MFB reported fire on pole top LIS 3319689, located in Ashelgh Ave, just north of Beach St burnt ipc on the blue phase to 95mil o/h service. - | Y86: HV/LV Connection | Z86: 994815 | AA86: 2227
A87: 49 | B87: 2017-01-23T19:09:41 | C87: 2017-01-23 | D87: 19:09:41 | E87: =_xlfn.IFNA(VLOOKUP($G87,Mapping!$C:$H,2,FALSE),"CHECK") -> -38.04387004 | F87: =_xlfn.IFNA(VLOOKUP($G87,Mapping!$C:$H,3,FALSE),"CHECK") -> 145.1339336 | G87: 3306941 | H87: =_xlfn.IFNA(VLOOKUP($G87,Mapping!$C:$H,6,FALSE),"CHECK") -> CRM35 | I87: Low voltage AC (<1kV) | J87: =_xlfn.IFNA(VLOOKUP($G87,Mapping!$C:$H,4,FALSE),"CHECK") -> Urban | K87: Asset failures resulting in grass/vegetation fire : Other Assets | L87: - connector / termination | M87: single phase | N87: Started in or originated from a distribution system | O87: =_xlfn.IFNA(VLOOKUP($G87,Mapping!$C:$H,5,FALSE),"CHECK") -> LBRA | P87: LBRA only | Q87: 0.2 | R87: Y | S87: =_xlfn.IFNA(VLOOKUP(C87,'Fire Rating'!$B:$C,2,FALSE),"") -> High | T87: 0.5 | U87: 0.1 | V87: 5150 | W87: 20170202UTD_01 | X87: Pole lis# 3306941 - looks like fire at base of pole - due to possible melted conn on the lv xarm - ampac to be redone - Small fire area about size of bin lid approx 2 sq meters - grass singed no fire when crew arrived | Y87: HV/LV Connection | Z87: 995133 | AA87: 7542
A88: 50 | B88: 2017-01-24T08:48:06 | C88: 2017-01-24 | D88: 08:48:06 | E88: =_xlfn.IFNA(VLOOKUP($G88,Mapping!$C:$H,2,FALSE),"CHECK") -> -37.94488606 | F88: =_xlfn.IFNA(VLOOKUP($G88,Mapping!$C:$H,3,FALSE),"CHECK") -> 145.0715606 | G88: 1816429 | H88: =_xlfn.IFNA(VLOOKUP($G88,Mapping!$C:$H,6,FALSE),"CHECK") -> HT 13 | I88: 11kV AC | J88: =_xlfn.IFNA(VLOOKUP($G88,Mapping!$C:$H,4,FALSE),"CHECK") -> Urban | K88: Asset failures resulting in asset fire (no grass/vegetation fire) : Pole and cross arm fire (including ‘smouldering’ or ‘smoke’) | L88: - insulators | M88: three phase | N88: Started in or originated from a distribution system | O88: =_xlfn.IFNA(VLOOKUP($G88,Mapping!$C:$H,5,FALSE),"CHECK") -> LBRA | P88: LBRA only | Q88: 0.2 | R88: Y | S88: =_xlfn.IFNA(VLOOKUP(C88,'Fire Rating'!$B:$C,2,FALSE),"") -> High | T88: 0.5 | U88: 0.1 | V88: 5149 | W88: 20170124UTD_03 | X88: X-arm burnt east of CH8142 requires replacment. lis 1816429. No other damage or any other fire observed in the vacinity at the time. | Y88: Insulator Failure-Pole/Xarm Fire | Z88: 995586 | AA88: 1309
A89: 51 | B89: 2017-01-29T03:32:54 | C89: 2017-01-29 | D89: 03:32:54 | E89: =_xlfn.IFNA(VLOOKUP($G89,Mapping!$C:$H,2,FALSE),"CHECK") -> -38.21468573 | F89: =_xlfn.IFNA(VLOOKUP($G89,Mapping!$C:$H,3,FALSE),"CHECK") -> 145.1130176 | G89: 8831026 | H89: =_xlfn.IFNA(VLOOKUP($G89,Mapping!$C:$H,6,FALSE),"CHECK") -> MTN22 | I89: 22kV AC | J89: =_xlfn.IFNA(VLOOKUP($G89,Mapping!$C:$H,4,FALSE),"CHECK") -> Rural Short | K89: Asset failures resulting in asset fire (no grass/vegetation fire) : Other Assets | L89: - crossarm (steel) | M89: three phase | N89: Started by any person, bird, reptile or other animal coming into contact with a distribution system | O89: =_xlfn.IFNA(VLOOKUP($G89,Mapping!$C:$H,5,FALSE),"CHECK") -> HBRA | P89: HBRA only | Q89: 1 | R89: Y | S89: =_xlfn.IFNA(VLOOKUP(C89,'Fire Rating'!$B:$C,2,FALSE),"") -> Very high | T89: 1 | U89: 1 | V89: 5159 | W89: 20170208UTD_02 | X89: A Possum seems to have bridhes between the steel crossarm and to bridging bar on the HV ABC interface igniting a fire on the Raychem coverfuseon the fuse unit at MT0102 LIS#8831026. | Y89: Bird/Animal | Z89: 1005175 | AA89: 6681
A90: 52 | B90: 2017-01-31T07:02:30 | C90: 2017-01-31 | D90: 07:02:30 | E90: =_xlfn.IFNA(VLOOKUP($G90,Mapping!$C:$H,2,FALSE),"CHECK") -> -37.94422734 | F90: =_xlfn.IFNA(VLOOKUP($G90,Mapping!$C:$H,3,FALSE),"CHECK") -> 145.0581277 | G90: 1823700 | H90: =_xlfn.IFNA(VLOOKUP($G90,Mapping!$C:$H,6,FALSE),"CHECK") -> MR 33 | I90: Low voltage AC (<1kV) | J90: =_xlfn.IFNA(VLOOKUP($G90,Mapping!$C:$H,4,FALSE),"CHECK") -> Urban | K90: Asset failures resulting in asset fire (no grass/vegetation fire) : Other Assets | L90: - overhead service conductor (residential) | M90: single phase | N90: Started in or originated from a distribution system | O90: =_xlfn.IFNA(VLOOKUP($G90,Mapping!$C:$H,5,FALSE),"CHECK") -> LBRA | P90: LBRA only | Q90: 0.2 | R90: Y | S90: =_xlfn.IFNA(VLOOKUP(C90,'Fire Rating'!$B:$C,2,FALSE),"") -> High | T90: 0.5 | U90: 0.1 | V90: 5160 | W90: 20170203UTD_06 | X90: ABC service cable leads (150mm) cable caught fire (load) - passed on to construction crew to replace them. LIS 1823700 | Y90: LV Service/Insulated Conductor | Z90: 1005768 | AA90: 1310
A91: 53 | B91: 2017-02-01T10:11:35 | C91: 2017-02-01 | D91: 10:11:35 | E91: =_xlfn.IFNA(VLOOKUP($G91,Mapping!$C:$H,2,FALSE),"CHECK") -> -37.91681728 | F91: =_xlfn.IFNA(VLOOKUP($G91,Mapping!$C:$H,3,FALSE),"CHECK") -> 145.1712457 | G91: 620680 | H91: =_xlfn.IFNA(VLOOKUP($G91,Mapping!$C:$H,6,FALSE),"CHECK") -> MGE22 | I91: 22kV AC | J91: =_xlfn.IFNA(VLOOKUP($G91,Mapping!$C:$H,4,FALSE),"CHECK") -> Urban | K91: Asset failures resulting in asset fire (no grass/vegetation fire) : Pole and cross arm fire (including ‘smouldering’ or ‘smoke’) | L91: - insulators | M91: three phase | N91: Started in or originated from a distribution system | O91: =_xlfn.IFNA(VLOOKUP($G91,Mapping!$C:$H,5,FALSE),"CHECK") -> LBRA | P91: LBRA only | Q91: 0.2 | R91: Y | S91: =_xlfn.IFNA(VLOOKUP(C91,'Fire Rating'!$B:$C,2,FALSE),"") -> High | T91: 0.5 | U91: 0.1 | V91: 5163 | W91: 20170206UTD_03 | X91: Change x-arm, LIS 0620680. Pole Fire | Y91: Insulator Failure-Pole/Xarm Fire | Z91: 1006337 | AA91: 1311
A92: 54 | B92: 2017-02-08T15:09:06 | C92: 2017-02-08 | D92: 15:09:06 | E92: =_xlfn.IFNA(VLOOKUP($G92,Mapping!$C:$H,2,FALSE),"CHECK") -> -37.92658205 | F92: =_xlfn.IFNA(VLOOKUP($G92,Mapping!$C:$H,3,FALSE),"CHECK") -> 145.1025914 | G92: 8804574 | H92: =_xlfn.IFNA(VLOOKUP($G92,Mapping!$C:$H,6,FALSE),"CHECK") -> CDA23 | I92: Low voltage AC (<1kV) | J92: =_xlfn.IFNA(VLOOKUP($G92,Mapping!$C:$H,4,FALSE),"CHECK") -> Urban | K92: Asset failures resulting in asset fire (no grass/vegetation fire) : Other Assets | L92: - connection box | M92: three phase | N92: Started in or originated from a distribution system | O92: =_xlfn.IFNA(VLOOKUP($G92,Mapping!$C:$H,5,FALSE),"CHECK") -> LBRA | P92: LBRA only | Q92: 0.2 | R92: Y | S92: =_xlfn.IFNA(VLOOKUP(C92,'Fire Rating'!$B:$C,2,FALSE),"") -> High | T92: 0.5 | U92: 0.1 | V92: 5165 | W92: 20170209UTD_01 | X92: As per mfb fuse box on pole burnt out -- fault crew replaced 3phs FMJB at pole end LIS #8804574. | Y92: LV Isol/Mains Box/FMB | Z92: 1010761 | AA92: 1315
A93: 55 | B93: 2017-02-08T17:01:00 | C93: 2017-02-08 | D93: 17:01:00 | E93: =_xlfn.IFNA(VLOOKUP($G93,Mapping!$C:$H,2,FALSE),"CHECK") -> -37.97790269 | F93: =_xlfn.IFNA(VLOOKUP($G93,Mapping!$C:$H,3,FALSE),"CHECK") -> 145.1659766 | G93: 619181 | H93: =_xlfn.IFNA(VLOOKUP($G93,Mapping!$C:$H,6,FALSE),"CHECK") -> NP 12 | I93: 66kV AC | J93: =_xlfn.IFNA(VLOOKUP($G93,Mapping!$C:$H,4,FALSE),"CHECK") -> Urban | K93: Asset failures resulting in asset fire (no grass/vegetation fire) : Oil-filled plant fire | L93: - capacity balancing units | M93: three phase | N93: Started in or originated from a distribution system | O93: =_xlfn.IFNA(VLOOKUP($G93,Mapping!$C:$H,5,FALSE),"CHECK") -> LBRA | P93: LBRA only | Q93: 0.2 | R93: Y | S93: =_xlfn.IFNA(VLOOKUP(C93,'Fire Rating'!$B:$C,2,FALSE),"") -> High | T93: 0.5 | U93: 0.1 | V93: 5166 | W93: 20170209UTD_02 | X93: Reactor Capacitor Bank failed and caught fire at NP Zone Sub . No cap can ruptured. Closest LIS 0619181. Fire brigade attended site to extinguish. | Y93: Asset Failure Mechanical | Z93: 1010846 | AA93: 6802
A94: 56 | B94: 2017-02-13T09:09:42 | C94: 2017-02-13 | D94: 09:09:42 | E94: =_xlfn.IFNA(VLOOKUP($G94,Mapping!$C:$H,2,FALSE),"CHECK") -> -38.13215425 | F94: =_xlfn.IFNA(VLOOKUP($G94,Mapping!$C:$H,3,FALSE),"CHECK") -> 145.124585 | G94: 3309074 | H94: =_xlfn.IFNA(VLOOKUP($G94,Mapping!$C:$H,6,FALSE),"CHECK") -> FTN14 | I94: 22kV AC | J94: =_xlfn.IFNA(VLOOKUP($G94,Mapping!$C:$H,4,FALSE),"CHECK") -> Urban | K94: Asset failures resulting in asset fire (no grass/vegetation fire) : Pole and cross arm fire (including ‘smouldering’ or ‘smoke’) | L94: - insulators | M94: three phase | N94: Started in or originated from a distribution system | O94: =_xlfn.IFNA(VLOOKUP($G94,Mapping!$C:$H,5,FALSE),"CHECK") -> LBRA | P94: LBRA only | Q94: 0.2 | R94: Y | S94: =_xlfn.IFNA(VLOOKUP(C94,'Fire Rating'!$B:$C,2,FALSE),"") -> Low-moderate | T94: 0.2 | U94: 0.04 | V94: 5171 | W94: 20170214UTD_02 | X94: X arm fire at T pole lis 3309074 Nepean Hwy Allawah ave. CFA in attendance. HV Xarm replaced | Y94: Insulator Failure-Pole/Xarm Fire | Z94: 1012361 | AA94: 6801
A95: 57 | B95: 2017-02-13T11:34:00 | C95: 2017-02-13 | D95: 11:34:00 | E95: =_xlfn.IFNA(VLOOKUP($G95,Mapping!$C:$H,2,FALSE),"CHECK") -> -37.95320417 | F95: =_xlfn.IFNA(VLOOKUP($G95,Mapping!$C:$H,3,FALSE),"CHECK") -> 145.0755737 | G95: 1819881 | H95: =_xlfn.IFNA(VLOOKUP($G95,Mapping!$C:$H,6,FALSE),"CHECK") -> HT 11 | I95: 22kV AC | J95: =_xlfn.IFNA(VLOOKUP($G95,Mapping!$C:$H,4,FALSE),"CHECK") -> Urban | K95: Asset failures resulting in grass/vegetation fire : HV Fuse | L95: - fuse (powder filled) | M95: three phase | N95: Started in or originated from a distribution system | O95: =_xlfn.IFNA(VLOOKUP($G95,Mapping!$C:$H,5,FALSE),"CHECK") -> LBRA | P95: LBRA only | Q95: 0.2 | R95: Y | S95: =_xlfn.IFNA(VLOOKUP(C95,'Fire Rating'!$B:$C,2,FALSE),"") -> Low-moderate | T95: 0.2 | U95: 0.04 | V95: 5172 | W95: 20170214UTD_03 | X95: HV fuse assembly faulted with pieces of porcelain making contact with vehicle, small grass fire started in private porperty around the ground type substation., 3x2m. Lis 1819881 | Y95: HV/LV Connection | Z95: 1012541 | AA95: 3844
A96: 58 | B96: 2017-02-25T09:38:14 | C96: 2017-02-25 | D96: 09:38:14 | E96: =_xlfn.IFNA(VLOOKUP($G96,Mapping!$C:$H,2,FALSE),"CHECK") -> -37.92599678 | F96: =_xlfn.IFNA(VLOOKUP($G96,Mapping!$C:$H,3,FALSE),"CHECK") -> 145.2150622 | G96: 618004 | H96: =_xlfn.IFNA(VLOOKUP($G96,Mapping!$C:$H,6,FALSE),"CHECK") -> MGE32 | I96: Low voltage AC (<1kV) | J96: =_xlfn.IFNA(VLOOKUP($G96,Mapping!$C:$H,4,FALSE),"CHECK") -> Urban | K96: Asset failures resulting in asset fire (no grass/vegetation fire) : Other Assets | L96: - switch (any other type) | M96: three phase | N96: Started in or originated from a distribution system | O96: =_xlfn.IFNA(VLOOKUP($G96,Mapping!$C:$H,5,FALSE),"CHECK") -> LBRA | P96: LBRA only | Q96: 0.2 | R96: Y | S96: =_xlfn.IFNA(VLOOKUP(C96,'Fire Rating'!$B:$C,2,FALSE),"") -> High | T96: 0.5 | U96: 0.1 | V96: 5184 | W96: 20170227UTD_01 | X96: Burntout krone box on S/S, on west cct and also repl mtr of 95 ABC and installed 3 x 125amp fuses, krone box caught fire, fire report #03966, only krone box damaged by fire, lis 0618004 | Y96: Krone Box | Z96: 1016879 | AA96: 3966
A97: 59 | B97: 2017-03-03T17:13:42 | C97: 2017-03-03 | D97: 17:13:42 | E97: =_xlfn.IFNA(VLOOKUP($G97,Mapping!$C:$H,2,FALSE),"CHECK") -> -38.11880199 | F97: =_xlfn.IFNA(VLOOKUP($G97,Mapping!$C:$H,3,FALSE),"CHECK") -> 145.1403546 | G97: 3304726 | H97: =_xlfn.IFNA(VLOOKUP($G97,Mapping!$C:$H,6,FALSE),"CHECK") -> FTN25 | I97: Low voltage AC (<1kV) | J97: =_xlfn.IFNA(VLOOKUP($G97,Mapping!$C:$H,4,FALSE),"CHECK") -> Urban | K97: Asset failures resulting in asset fire (no grass/vegetation fire) : Other Assets | L97: - lamps (minor road) | M97: single phase | N97: Started in or originated from a distribution system | O97: =_xlfn.IFNA(VLOOKUP($G97,Mapping!$C:$H,5,FALSE),"CHECK") -> LBRA | P97: LBRA only | Q97: 0.2 | R97: Y | S97: =_xlfn.IFNA(VLOOKUP(C97,'Fire Rating'!$B:$C,2,FALSE),"") -> High | T97: 0.5 | U97: 0.1 | V97: 5190 | W97: 20170306UTD_02 | X97: isolated supply to pe cell and watchman light - burnt out - fire ignition report 04562 lis 3304726 - ref to SL to follow - Luke Baxter has taken photos | Y97: Street Lights | Z97: 1020118 | AA97: 4562
A98: 60 | B98: 2017-03-04T15:33:34 | C98: 2017-03-04 | D98: 15:33:34 | E98: =_xlfn.IFNA(VLOOKUP($G98,Mapping!$C:$H,2,FALSE),"CHECK") -> -37.86194887 | F98: =_xlfn.IFNA(VLOOKUP($G98,Mapping!$C:$H,3,FALSE),"CHECK") -> 145.1368484 | G98: 600806 | H98: =_xlfn.IFNA(VLOOKUP($G98,Mapping!$C:$H,6,FALSE),"CHECK") -> EB 22 | I98: Low voltage AC (<1kV) | J98: =_xlfn.IFNA(VLOOKUP($G98,Mapping!$C:$H,4,FALSE),"CHECK") -> Urban | K98: Grass/vegetation fires from assets (non-asset failures) : Fire starts in grass/vegetation resulting from trees contacting network assets | L98: - overhead service conductor (residential) | M98: three phase | N98: Started by any tree, or part of a tree, falling upon or coming into contact with a distribution system | O98: =_xlfn.IFNA(VLOOKUP($G98,Mapping!$C:$H,5,FALSE),"CHECK") -> LBRA | P98: LBRA only | Q98: 0.2 | R98: Y | S98: =_xlfn.IFNA(VLOOKUP(C98,'Fire Rating'!$B:$C,2,FALSE),"") -> High | T98: 0.5 | U98: 0.1 | V98: 5188 | W98: 20170306UTD_01 | X98: repl 2core service rubbed through by council tree, tree & service caught fire/MFB in attendance, fire out by time crew arrived, LIS 0600806, fire ignition report #02821 | Y98: Tree/Bark ORP | Z98: 1020280 | AA98: 2821
A99: 61 | B99: 2017-03-05T15:12:00 | C99: 2017-03-05 | D99: 15:12:00 | E99: =_xlfn.IFNA(VLOOKUP($G99,Mapping!$C:$H,2,FALSE),"CHECK") -> -38.42237399 | F99: =_xlfn.IFNA(VLOOKUP($G99,Mapping!$C:$H,3,FALSE),"CHECK") -> 144.8868873 | G99: 1312279 | H99: =_xlfn.IFNA(VLOOKUP($G99,Mapping!$C:$H,6,FALSE),"CHECK") -> RBD21 | I99: Low voltage AC (<1kV) | J99: =_xlfn.IFNA(VLOOKUP($G99,Mapping!$C:$H,4,FALSE),"CHECK") -> Rural Short | K99: Asset failures resulting in grass/vegetation fire : Other Assets | L99: - connection box | M99: single phase | N99: Started in or originated from a distribution system | O99: =_xlfn.IFNA(VLOOKUP($G99,Mapping!$C:$H,5,FALSE),"CHECK") -> LBRA | P99: LBRA only | Q99: 0.2 | R99: Y | S99: =_xlfn.IFNA(VLOOKUP(C99,'Fire Rating'!$B:$C,2,FALSE),"") -> Low-moderate | T99: 0.2 | U99: 0.04 | V99: 5189 | W99: 20170309UTD_01 | X99: Red phase had burnt out at fmb at pole and started small grass fire at base of pole, due to loose connection, LIS 1312279. Fre already extinguished by CFA No damage to pole or other property, only grass at base of pole affected by fire. | Y99: LV Isol/Mains Box/FMB | Z99: 1020410 | AA99: 1637
A100: 62 | B100: 2017-03-06T20:27:00 | C100: 2017-03-06 | D100: 20:27:00 | E100: =_xlfn.IFNA(VLOOKUP($G100,Mapping!$C:$H,2,FALSE),"CHECK") -> -37.82948286 | F100: =_xlfn.IFNA(VLOOKUP($G100,Mapping!$C:$H,3,FALSE),"CHECK") -> 145.2005466 | G100: 7031323 | H100: =_xlfn.IFNA(VLOOKUP($G100,Mapping!$C:$H,6,FALSE),"CHECK") -> RWT24 | I100: Low voltage AC (<1kV) | J100: =_xlfn.IFNA(VLOOKUP($G100,Mapping!$C:$H,4,FALSE),"CHECK") -> Urban | K100: Asset failures resulting in asset fire (no grass/vegetation fire) : Other Assets | L100: - connector / termination | M100: single phase | N100: Started in or originated from a distribution system | O100: =_xlfn.IFNA(VLOOKUP($G100,Mapping!$C:$H,5,FALSE),"CHECK") -> LBRA | P100: LBRA only | Q100: 0.2 | R100: Y | S100: =_xlfn.IFNA(VLOOKUP(C100,'Fire Rating'!$B:$C,2,FALSE),"") -> High | T100: 0.5 | U100: 0.1 | V100: 5191 | W100: 20170309UTD_02 | X100: Burnt LV lead/connection on white phase, requires replacement. No sign of firestart, no ground burn or assets showing sign of fire damage but MFB advised visible flames when they first arrived on site, firestart report #2704, lis 7031323, | Y100: HV/LV Connection | Z100: 1020793 | AA100: 2704
A101: 63 | B101: 2017-03-09T13:39:15 | C101: 2017-03-09 | D101: 13:39:15 | E101: =_xlfn.IFNA(VLOOKUP($G101,Mapping!$C:$H,2,FALSE),"CHECK") -> -38.05249562 | F101: =_xlfn.IFNA(VLOOKUP($G101,Mapping!$C:$H,3,FALSE),"CHECK") -> 145.1164422 | G101: 8817371 | H101: =_xlfn.IFNA(VLOOKUP($G101,Mapping!$C:$H,6,FALSE),"CHECK") -> CRM12 | I101: Low voltage AC (<1kV) | J101: =_xlfn.IFNA(VLOOKUP($G101,Mapping!$C:$H,4,FALSE),"CHECK") -> Urban | K101: Asset failures resulting in asset fire (no grass/vegetation fire) : Other Assets | L101: - connector / termination | M101: single phase | N101: Started in or originated from a distribution system | O101: =_xlfn.IFNA(VLOOKUP($G101,Mapping!$C:$H,5,FALSE),"CHECK") -> LBRA | P101: LBRA only | Q101: 0.2 | R101: Y | S101: =_xlfn.IFNA(VLOOKUP(C101,'Fire Rating'!$B:$C,2,FALSE),"") -> High | T101: 0.5 | U101: 0.1 | V101: 5196 | W101: 20170316UTD_01 | X101: White phase ampact has been shorting on LV conductor on lis # 8817371, has dropped molten metal down on vehicles underneath. Fire ignition report 00342, 1 car damaged by melted metal. | Y101: HV/LV Connection | Z101: 1021924 | AA101: 342
A102: 64 | B102: 2017-03-12T11:55:35 | C102: 2017-03-12 | D102: 11:55:35 | E102: =_xlfn.IFNA(VLOOKUP($G102,Mapping!$C:$H,2,FALSE),"CHECK") -> -37.97995769 | F102: =_xlfn.IFNA(VLOOKUP($G102,Mapping!$C:$H,3,FALSE),"CHECK") -> 145.1199447 | G102: 608434 | H102: =_xlfn.IFNA(VLOOKUP($G102,Mapping!$C:$H,6,FALSE),"CHECK") -> SS 23 | I102: 22kV AC | J102: =_xlfn.IFNA(VLOOKUP($G102,Mapping!$C:$H,4,FALSE),"CHECK") -> Urban | K102: Grass/vegetation fires from assets (non-asset failures) : Fire starts in grass/vegetation resulting from trees contacting network assets | L102: - overhead conductor (bare; all aluminium conductor) | M102: three phase | N102: Started by any tree, or part of a tree, falling upon or coming into contact with a distribution system | O102: =_xlfn.IFNA(VLOOKUP($G102,Mapping!$C:$H,5,FALSE),"CHECK") -> LBRA | P102: LBRA only | Q102: 0.2 | R102: Y | S102: =_xlfn.IFNA(VLOOKUP(C102,'Fire Rating'!$B:$C,2,FALSE),"") -> High | T102: 0.5 | U102: 0.1 | V102: 5197 | W102: 20170317UTD_01 | X102: Private tree at 47 Village Drive contacted HV conductors and caught alight briefly | Y102: Tree/Bark UE | Z102: 1023070 | AA102: 1314
A103: 65 | B103: 2017-03-15T17:59:18 | C103: =DATEVALUE(DAY(B103) & "/" & MONTH(B103) & "/" & YEAR(B103)) -> 2017-03-15 | D103: =TIME(HOUR(B103),MINUTE(B103),SECOND(B103)) -> 17:59:18 | E103: =_xlfn.IFNA(VLOOKUP($G103,Mapping!$C:$H,2,FALSE),"CHECK") -> -38.37834921 | F103: =_xlfn.IFNA(VLOOKUP($G103,Mapping!$C:$H,3,FALSE),"CHECK") -> 144.9253499 | G103: 1311305 | H103: =_xlfn.IFNA(VLOOKUP($G103,Mapping!$C:$H,6,FALSE),"CHECK") -> RBD12 | I103: Low voltage AC (<1kV) | J103: =_xlfn.IFNA(VLOOKUP($G103,Mapping!$C:$H,4,FALSE),"CHECK") -> Rural Short | K103: Asset failures resulting in grass/vegetation fire : Other Assets | L103: - connector / termination | M103: single phase | N103: Started in or originated from a distribution system | O103: =_xlfn.IFNA(VLOOKUP($G103,Mapping!$C:$H,5,FALSE),"CHECK") -> LBRA | P103: LBRA only | Q103: =IF(P103="","",IF(P103="LBRA only",0.2,IF(P103="HBRA only",1,IF(P103="within electric line construction area",19.8,IF(P103="within area delineated on plan LEGL./16-354",4.6,""))))) -> 0.2 | R103: Y | S103: =_xlfn.IFNA(VLOOKUP(C103,'Fire Rating'!$B:$C,2,FALSE),"") -> Very high | T103: =IF(S103="","",IF(S103="No forecast",0.1,IF(R103="N",0.1,IF(S103="Low-moderate",0.2,IF(S103="High",0.5,IF(S103="Very high",1,IF(S103="Severe",2,IF(S103="Extreme",3.5,5)))))))) -> 1 | U103: =IF(OR(Q103="",T103=""),"",IF(AND(P103="within electric line construction area",S103="No forecast"),1,Q103*T103)) -> 0.2 | V103: 5198 | W103: 20170317UTD_02 | X103: o/s #5 Goolgowie - lis 1311305. Fire ignition on the ground to some trees. fire was out on arrival by CFA. Crew replaced a red ph copper to ally d on the LV from the red ph transformer lead (Murawa Goolgowie s/s ) to the main. | Y103: HV/LV Connection | Z103: 1024089 | AA103: 6590
A104: 66 | B104: 2017-03-20T20:05:55 | C104: 2017-03-20 | D104: 20:05:55 | E104: =_xlfn.IFNA(VLOOKUP($G104,Mapping!$C:$H,2,FALSE),"CHECK") -> -37.93875098 | F104: =_xlfn.IFNA(VLOOKUP($G104,Mapping!$C:$H,3,FALSE),"CHECK") -> 145.1627793 | G104: 8805944 | H104: =_xlfn.IFNA(VLOOKUP($G104,Mapping!$C:$H,6,FALSE),"CHECK") -> SVW55 | I104: Low voltage AC (<1kV) | J104: =_xlfn.IFNA(VLOOKUP($G104,Mapping!$C:$H,4,FALSE),"CHECK") -> Urban | K104: Asset failures resulting in asset fire (no grass/vegetation fire) : Other Assets | L104: - lamps (major road) | M104: single phase | N104: Started in or originated from a distribution system | O104: =_xlfn.IFNA(VLOOKUP($G104,Mapping!$C:$H,5,FALSE),"CHECK") -> LBRA | P104: =IF(O104="LBRA","LBRA only","HBRA only") -> LBRA only | Q104: 0.2 | R104: Y | S104: =_xlfn.IFNA(VLOOKUP(C104,'Fire Rating'!$B:$C,2,FALSE),"") -> Low-moderate | T104: 0.2 | U104: 0.04 | V104: 5200 | W104: 20170322UTD_01 | X104: lis # 8805944 - street light pole in ctr medium strip - MFB on site stated street light head was on fire - crew found and replaced blown 50a fuse restoring supply to all street lights - i) #8805944 - refer new t/o #1025737 to replace street light | Y104: Street Lights | Z104: 1025725 | AA104: 1317
A105: 67 | B105: 2017-03-22T06:44:46 | C105: 2017-03-22 | D105: 06:44:46 | E105: =_xlfn.IFNA(VLOOKUP($G105,Mapping!$C:$H,2,FALSE),"CHECK") -> -37.9716333 | F105: =_xlfn.IFNA(VLOOKUP($G105,Mapping!$C:$H,3,FALSE),"CHECK") -> 145.0150249 | G105: 1817406 | H105: =_xlfn.IFNA(VLOOKUP($G105,Mapping!$C:$H,6,FALSE),"CHECK") -> BR 13 | I105: Low voltage AC (<1kV) | J105: =_xlfn.IFNA(VLOOKUP($G105,Mapping!$C:$H,4,FALSE),"CHECK") -> Urban | K105: Asset failures resulting in asset fire (no grass/vegetation fire) : Other Assets | L105: - overhead service conductor (residential) | M105: single phase | N105: Started in or originated from a distribution system | O105: =_xlfn.IFNA(VLOOKUP($G105,Mapping!$C:$H,5,FALSE),"CHECK") -> LBRA | P105: LBRA only | Q105: 0.2 | R105: Y | S105: =_xlfn.IFNA(VLOOKUP(C105,'Fire Rating'!$B:$C,2,FALSE),"") -> Low-moderate | T105: 0.2 | U105: 0.04 | V105: 5207 | W105: 20170329UTD_03 | X105: replaced 3phs grey twisted service -lis: 1817406 -(fire was at clamp of old service, new style clamp fitted on old grey twisted service which is no-complient) - fire out when crew arrived - no damage to customers premise | Y105: LV Service/Insulated Conductor | Z105: 1026521 | AA105: 7523
A106: 68 | B106: 2017-03-27T19:10:30 | C106: 2017-03-27 | D106: 19:10:30 | E106: =_xlfn.IFNA(VLOOKUP($G106,Mapping!$C:$H,2,FALSE),"CHECK") -> -38.47773694 | F106: =_xlfn.IFNA(VLOOKUP($G106,Mapping!$C:$H,3,FALSE),"CHECK") -> 145.0238636 | G106: 1313402 | H106: =_xlfn.IFNA(VLOOKUP($G106,Mapping!$C:$H,6,FALSE),"CHECK") -> RBD21 | I106: 22kV AC | J106: =_xlfn.IFNA(VLOOKUP($G106,Mapping!$C:$H,4,FALSE),"CHECK") -> Rural Short | K106: Asset failures resulting in asset fire (no grass/vegetation fire) : Pole and cross arm fire (including ‘smouldering’ or ‘smoke’) | L106: - insulators | M106: three phase | N106: Started in or originated from a distribution system | O106: =_xlfn.IFNA(VLOOKUP($G106,Mapping!$C:$H,5,FALSE),"CHECK") -> HBRA | P106: HBRA only | Q106: 1 | R106: N | S106: =_xlfn.IFNA(VLOOKUP(C106,'Fire Rating'!$B:$C,2,FALSE),"") -> High | T106: 0.1 | U106: 0.1 | V106: 5210 | W106: 20170330UTD_03 | X106: LIS # 1313402 - no fire visible when crew arrived on site, burnt pole top, insulators tracking caused pole to burn at eyebolts on centre phase, top of pole to be cut away and assets lowered, pole OK and does not require replacement - | Y106: Insulator Failure-Pole/Xarm Fire | Z106: 1029740 | AA106: 2385
A107: 69 | B107: 2017-03-29T15:40:08 | C107: 2017-03-29 | D107: 15:40:08 | E107: =_xlfn.IFNA(VLOOKUP($G107,Mapping!$C:$H,2,FALSE),"CHECK") -> -37.97825394 | F107: =_xlfn.IFNA(VLOOKUP($G107,Mapping!$C:$H,3,FALSE),"CHECK") -> 145.039512 | G107: 1811906 | H107: =_xlfn.IFNA(VLOOKUP($G107,Mapping!$C:$H,6,FALSE),"CHECK") -> BR 15 | I107: 11kV AC | J107: =_xlfn.IFNA(VLOOKUP($G107,Mapping!$C:$H,4,FALSE),"CHECK") -> Urban | K107: Grass/vegetation fires from assets (non-asset failures) : Fire starts in grass/vegetation resulting from trees contacting network assets | L107: - overhead conductor (bare; all aluminium conductor) | M107: three phase | N107: Started by any tree, or part of a tree, falling upon or coming into contact with a distribution system | O107: =_xlfn.IFNA(VLOOKUP($G107,Mapping!$C:$H,5,FALSE),"CHECK") -> LBRA | P107: LBRA only | Q107: 0.2 | R107: N | S107: =_xlfn.IFNA(VLOOKUP(C107,'Fire Rating'!$B:$C,2,FALSE),"") -> High | T107: 0.1 | U107: 0.02 | V107: 5214 | W107: 20170403UTD_01 | X107: Ref to TO# 1030380, found and cleared private tree branches at #141 Pellatt St, Tree cause a fault current that melted bridges causing a small ground fire Fire ignition # 05626 | Y107: Tree/Bark UE | Z107: 1030400 | AA107: 5626
A108: 70 | B108: 2017-04-03T20:10:30 | C108: 2017-04-03 | D108: 20:10:30 | E108: =_xlfn.IFNA(VLOOKUP($G108,Mapping!$C:$H,2,FALSE),"CHECK") -> -38.1609109 | F108: =_xlfn.IFNA(VLOOKUP($G108,Mapping!$C:$H,3,FALSE),"CHECK") -> 145.2099988 | G108: 3312792 | H108: =_xlfn.IFNA(VLOOKUP($G108,Mapping!$C:$H,6,FALSE),"CHECK") -> LWN32 | I108: Low voltage AC (<1kV) | J108: =_xlfn.IFNA(VLOOKUP($G108,Mapping!$C:$H,4,FALSE),"CHECK") -> Rural Short | K108: Asset failures resulting in grass/vegetation fire : Other Assets | L108: - connection box | M108: three phase | N108: Started in or originated from a distribution system | O108: =_xlfn.IFNA(VLOOKUP($G108,Mapping!$C:$H,5,FALSE),"CHECK") -> HBRA | P108: HBRA only | Q108: 1 | R108: N | S108: =_xlfn.IFNA(VLOOKUP(C108,'Fire Rating'!$B:$C,2,FALSE),"") -> Low-moderate | T108: 0.1 | U108: 0.1 | V108: 5215 | W108: 20170405UTD_01 | X108: Crew replaced a b ph service pole box which was also the tranny isolator. Fire report num is 04564. Whispir sent. LIS 3312792 | Y108: LV Isol/Mains Box/FMB | Z108: 1032954 | AA108: 4564
A109: 71 | B109: 2017-04-11T12:25:00 | C109: 2017-04-11 | D109: 12:25:00 | E109: =_xlfn.IFNA(VLOOKUP($G109,Mapping!$C:$H,2,FALSE),"CHECK") -> -37.94551873 | F109: =_xlfn.IFNA(VLOOKUP($G109,Mapping!$C:$H,3,FALSE),"CHECK") -> 145.0224341 | G109: 1824943 | H109: =_xlfn.IFNA(VLOOKUP($G109,Mapping!$C:$H,6,FALSE),"CHECK") -> SR 24 | I109: 11kV AC | J109: =_xlfn.IFNA(VLOOKUP($G109,Mapping!$C:$H,4,FALSE),"CHECK") -> Urban | K109: Asset failures resulting in asset fire (no grass/vegetation fire) : Pole and cross arm fire (including ‘smouldering’ or ‘smoke’) | L109: - insulators | M109: three phase | N109: Started in or originated from a distribution system | O109: =_xlfn.IFNA(VLOOKUP($G109,Mapping!$C:$H,5,FALSE),"CHECK") -> LBRA | P109: LBRA only | Q109: 0.2 | R109: N | S109: =_xlfn.IFNA(VLOOKUP(C109,'Fire Rating'!$B:$C,2,FALSE),"") -> Low-moderate | T109: 0.1 | U109: 0.02 | V109: 5223 | W109: 20170425UTD_04 | X109: SR24 FDR exit sw CH1751 failed. Hv isolator failed on footpath failed/broke apart. 11kv tracked onto arm and created hotspot on pole which burnt. replaced 66kv pole, 66 inter arm, 11kv term with hv isolators, replaced all 66kv insulators. | Y109: Insulator Failure-Pole/Xarm Fire | Z109: 1037054 | AA109: 1318
A110: 72 | B110: 2017-04-25T07:45:39 | C110: 2017-04-25 | D110: 07:45:39 | E110: =_xlfn.IFNA(VLOOKUP($G110,Mapping!$C:$H,2,FALSE),"CHECK") -> -38.01596013 | F110: =_xlfn.IFNA(VLOOKUP($G110,Mapping!$C:$H,3,FALSE),"CHECK") -> 145.0936824 | G110: 3302271 | H110: =_xlfn.IFNA(VLOOKUP($G110,Mapping!$C:$H,6,FALSE),"CHECK") -> MC 01 | I110: Low voltage AC (<1kV) | J110: =_xlfn.IFNA(VLOOKUP($G110,Mapping!$C:$H,4,FALSE),"CHECK") -> Urban | K110: Asset failures resulting in asset fire (no grass/vegetation fire) : Other Assets | L110: - LV pillar | M110: three phase | N110: Started in or originated from a distribution system | O110: =_xlfn.IFNA(VLOOKUP($G110,Mapping!$C:$H,5,FALSE),"CHECK") -> LBRA | P110: LBRA only | Q110: 0.2 | R110: N | S110: =_xlfn.IFNA(VLOOKUP(C110,'Fire Rating'!$B:$C,2,FALSE),"") -> Low-moderate | T110: 0.1 | U110: 0.02 | V110: 5226 | W110: 20170430UTD_04 | X110: UG pillar burnt out at LIS 3302271, Fire start report no# 05281, fire was at pillar only no damage to anything external. | Y110: UG/Pits/Pillar/Kiosk | Z110: 1043322 | AA110: 5281
A111: 73 | B111: 2017-05-28T13:37:10 | C111: 2017-05-28 | D111: 13:37:10 | E111: =_xlfn.IFNA(VLOOKUP($G111,Mapping!$C:$H,2,FALSE),"CHECK") -> -37.94597891 | F111: =_xlfn.IFNA(VLOOKUP($G111,Mapping!$C:$H,3,FALSE),"CHECK") -> 145.0674997 | G111: 1816401 | H111: =_xlfn.IFNA(VLOOKUP($G111,Mapping!$C:$H,6,FALSE),"CHECK") -> HT 06 | I111: 22kV AC | J111: =_xlfn.IFNA(VLOOKUP($G111,Mapping!$C:$H,4,FALSE),"CHECK") -> Urban | K111: Asset failures resulting in grass/vegetation fire : HV Fuse | L111: - fuse (powder filled) | M111: three phase | N111: Started in or originated from a distribution system | O111: =_xlfn.IFNA(VLOOKUP($G111,Mapping!$C:$H,5,FALSE),"CHECK") -> LBRA | P111: LBRA only | Q111: 0.2 | R111: N | S111: =_xlfn.IFNA(VLOOKUP(C111,'Fire Rating'!$B:$C,2,FALSE),"") -> No forecast | T111: 0.1 | U111: 0.02 | V111: 5238 | W111: 20170601UTD_01 | X111: Rph 31.5 PFF fuse candled and exploded with porcilan over the ground causes scorching of the grass below. No other damage to assets. Crew suspect fuse was already cracked and has finally failed. lis 1816401. Fire reprot 02522. | Y111: HV Fuse Candling | Z111: 1056154 | AA111: 2522
A112: 74 | B112: 2017-06-13T18:36:02 | C112: 2017-06-13 | D112: 18:36:02 | E112: =_xlfn.IFNA(VLOOKUP($G112,Mapping!$C:$H,2,FALSE),"CHECK") -> -38.01246843 | F112: =_xlfn.IFNA(VLOOKUP($G112,Mapping!$C:$H,3,FALSE),"CHECK") -> 145.1572229 | G112: 634631 | H112: =_xlfn.IFNA(VLOOKUP($G112,Mapping!$C:$H,6,FALSE),"CHECK") -> KBH34 | I112: Low voltage AC (<1kV) | J112: =_xlfn.IFNA(VLOOKUP($G112,Mapping!$C:$H,4,FALSE),"CHECK") -> Urban | K112: Asset failures resulting in asset fire (no grass/vegetation fire) : Other Assets | L112: - overhead conductor (insulated) | M112: single phase | N112: Started in or originated from a distribution system | O112: =_xlfn.IFNA(VLOOKUP($G112,Mapping!$C:$H,5,FALSE),"CHECK") -> LBRA | P112: LBRA only | Q112: 0.2 | R112: N | S112: =_xlfn.IFNA(VLOOKUP(C112,'Fire Rating'!$B:$C,2,FALSE),"") -> No forecast | T112: 0.1 | U112: 0.02 | V112: 5246 | W112: 20170615UTD_02 | X112: lis: 34631 - crew isolated supply at TX Hutton P13 Chapel - caused by short cct on Tx Lv leads - LV leads Krone box etc replaced. | Y112: HV/LV Connection | Z112: 1062971 | AA112: 4003
A113: 75 | B113: 2017-06-25T13:17:49 | C113: 2017-06-25 | D113: 13:17:49 | E113: =_xlfn.IFNA(VLOOKUP($G113,Mapping!$C:$H,2,FALSE),"CHECK") -> -37.97320589 | F113: =_xlfn.IFNA(VLOOKUP($G113,Mapping!$C:$H,3,FALSE),"CHECK") -> 145.0142518 | G113: 1817994 | H113: =_xlfn.IFNA(VLOOKUP($G113,Mapping!$C:$H,6,FALSE),"CHECK") -> BR 13 | I113: Low voltage AC (<1kV) | J113: =_xlfn.IFNA(VLOOKUP($G113,Mapping!$C:$H,4,FALSE),"CHECK") -> Urban | K113: Asset failures resulting in asset fire (no grass/vegetation fire) : Other Assets | L113: - underground service cable (residential) | M113: three phase | N113: Started by any other thing forming part of or coming into contact with a distribution system | O113: =_xlfn.IFNA(VLOOKUP($G113,Mapping!$C:$H,5,FALSE),"CHECK") -> LBRA | P113: LBRA only | Q113: 0.2 | R113: N | S113: =_xlfn.IFNA(VLOOKUP(C113,'Fire Rating'!$B:$C,2,FALSE),"") -> No forecast | T113: 0.1 | U113: 0.02 | V113: 5255 | W113: 20170721UTD_04 | X113: LIS# 1817994 - O/S 278 , as per MFB please check pole. Car crashed into pole has damaged LV u/g conductors and caused fire damage to pole. lv inter pole fire damage repot @ 05805 | Y113: Third Party | Z113: 1067798 | AA113: 5805
A114: 76 | B114: 2017-06-30T09:08:49 | C114: 2017-06-30 | D114: 09:08:49 | E114: =_xlfn.IFNA(VLOOKUP($G114,Mapping!$C:$H,2,FALSE),"CHECK") -> -38.1057932 | F114: =_xlfn.IFNA(VLOOKUP($G114,Mapping!$C:$H,3,FALSE),"CHECK") -> 145.1874009 | G114: 8814301 | H114: =_xlfn.IFNA(VLOOKUP($G114,Mapping!$C:$H,6,FALSE),"CHECK") -> FTN23 | I114: Low voltage AC (<1kV) | J114: =_xlfn.IFNA(VLOOKUP($G114,Mapping!$C:$H,4,FALSE),"CHECK") -> Urban | K114: Asset failures resulting in asset fire (no grass/vegetation fire) : Other Assets | L114: - switch (any other type) | M114: three phase | N114: Started in or originated from a distribution system | O114: =_xlfn.IFNA(VLOOKUP($G114,Mapping!$C:$H,5,FALSE),"CHECK") -> LBRA | P114: LBRA only | Q114: 0.2 | R114: N | S114: =_xlfn.IFNA(VLOOKUP(C114,'Fire Rating'!$B:$C,2,FALSE),"") -> No forecast | T114: 0.1 | U114: 0.02 | V114: 5259 | W114: 20170721UTD_08 | X114: LV chrone box found burnt out at Woodvale-Strathearn S/Stn. S/Stn isolated LV and HV and customers restored via LV //s. krone box has been replaced and 315 amp fuses have been replaced on a all 3 phases lis# 8814301 | Y114: Krone Box | Z114: 1069613 | AA114: 6603

Sheet 3. Systems and Audit
B1: =IF(Cover!C25="","[DNSP Name]", Cover!C25) -> United Energy
B2: F-factor data reporting
B3: =IF(Cover!C31="","[Year]",Cover!C31) -> 2016/17
B6: Instructions:
B8: =IF(Cover!C25="","[DNSP Name] must provide:", CONCATENATE(Cover!C25," must provide:")) -> United Energy must provide:
B10: Table 4 - Information or reporting systems
B11: (1) Name of any IT system used to collect fire start data or fault event data - i.e. SCADA system, or fault reporting system
B12: (2) Whether the fire recording or fault recording process has been audited or complies with a relevant Australian or industry standard - Yes or No
B13: (3) List any relevant Australian or industry standards that the fire recording or fault recording process complies with
B14: (4) Whether the data entered into or removed from the IT system has been audited - Yes or No
B17: Table 4: Information or reporting systems
B19: Information or reporting systems | C19: Name | D19: System Audited | E19: Relevant Standards
B20: System 1 | C20: Distribution Management System (DMS) | D20: Yes | E20: None
B21: System 2 | C21: SCADA | D21: No | E21: None
B22: System 3 | C22: GIS | D22: Yes | E22: None
B23: System 4
B24: System 5
B26: The SGSPAA Internal Audit function undertakes a programme of work in accordance with the SGSPAA Group Internal Audit Plan. This internal audit activity covers elements of the systems and process used for capturing, recording and maintaining fire start data.

Sheet Mapping
B2: Functional Location | C2: LIS | D2: Latitude | E2: Longitude | F2: Urban/Rural | G2: HBRA/LBRA | H2: Feeder
B3: PO-0648418 | C3: 648418 | D3: -37.81133619 | E3: 145.1599051 | F3: Urban | G3: LBRA | H3: NW 11
B4: PO-0639402 | C4: 639402 | D4: -37.81122576 | E4: 145.1588931 | F4: Urban | G4: LBRA | H4: NW 31
B5: PO-0639401 | C5: 639401 | D5: -37.81128701 | E5: 145.1594463 | F5: Urban | G5: LBRA | H5: NW 11
B6: PO-0648438 | C6: 648438 | D6: -37.81117917 | E6: 145.1583149 | F6: Urban | G6: LBRA | H6: NW 31
B7: PO-0639326 | C7: 639326 | D7: -37.80659438 | E7: 145.191015 | F7: Urban | G7: LBRA | H7: NW 22
B8: PO-0639334 | C8: 639334 | D8: -37.80820812 | E8: 145.1873427 | F8: Urban | G8: LBRA | H8: NW 22
B9: PO-0639349 | C9: 639349 | D9: -37.81129559 | E9: 145.1809684 | F9: Urban | G9: LBRA | H9: NW 22
B10: PO-7039262 | C10: 7039262 | D10: -37.82214107 | E10: 145.2108185 | F10: Urban | G10: LBRA | H10: RWT24
B11: PO-7039261 | C11: 7039261 | D11: -37.82214102 | E11: 145.2115058 | F11: Urban | G11: LBRA | H11: RWT24
B12: PO-7037984 | C12: 7037984 | D12: -37.82426577 | E12: 145.2132681 | F12: Urban | G12: LBRA | H12: RWT35
B13: PO-7037991 | C13: 7037991 | D13: -37.82468841 | E13: 145.2132659 | F13: Urban | G13: LBRA | H13: RWT35
B14: PO-7039096 | C14: 7039096 | D14: -37.82503321 | E14: 145.2132659 | F14: Urban | G14: LBRA | H14: RWT35
B15: PO-7037987 | C15: 7037987 | D15: -37.82627125 | E15: 145.21327 | F15: Urban | G15: LBRA | H15: RWT35
B16: PO-7011958 | C16: 7011958 | D16: -37.82668153 | E16: 145.2132681 | F16: Urban | G16: LBRA | H16: RWT35
B17: PO-7037983 | C17: 7037983 | D17: -37.82704179 | E17: 145.2132677 | F17: Urban | G17: LBRA | H17: RWT35
B18: PO-7037979 | C18: 7037979 | D18: -37.82778141 | E18: 145.2132656 | F18: Urban | G18: LBRA | H18: RWT35
B19: PO-7037973 | C19: 7037973 | D19: -37.82862942 | E19: 145.2132689 | F19: Urban | G19: LBRA | H19: RWT35
B20: PO-7037981 | C20: 7037981 | D20: -37.82901161 | E20: 145.2132693 | F20: Urban | G20: LBRA | H20: RWT35
B21: PO-7037976 | C21: 7037976 | D21: -37.82938237 | E21: 145.2132648 | F21: Urban | G21: LBRA | H21: RWT35
B22: PO-7037980 | C22: 7037980 | D22: -37.83071195 | E22: 145.2132594 | F22: Urban | G22: LBRA | H22: RWT35
B23: PO-0639546 | C23: 639546 | D23: -37.83518688 | E23: 145.1990572 | F23: Urban | G23: LBRA | H23: RWT34
B24: PO-0639545 | C24: 639545 | D24: -37.83509903 | E24: 145.1994968 | F24: Urban | G24: LBRA | H24: RWT34
B25: PO-0639547 | C25: 639547 | D25: -37.83525539 | E25: 145.1987222 | F25: Urban | G25: LBRA | H25: RWT34
B26: PO-0648554 | C26: 648554 | D26: -37.83535477 | E26: 145.1982482 | F26: Urban | G26: LBRA | H26: BH 11
B27: PO-0648550 | C27: 648550 | D27: -37.83545567 | E27: 145.1977761 | F27: Urban | G27: LBRA | H27: RWT34
B28: PO-0639622 | C28: 639622 | D28: -37.83385326 | E28: 145.1655247 | F28: Urban | G28: LBRA | H28: NW 21
B29: PO-0639626 | C29: 639626 | D29: -37.83360673 | E29: 145.1635713 | F29: Urban | G29: LBRA | H29: BH 11
B30: PO-0639627 | C30: 639627 | D30: -37.8335437 | E30: 145.1630937 | F30: Urban | G30: LBRA | H30: BH 11
B31: PO-0639629 | C31: 639629 | D31: -37.83370561 | E31: 145.1624722 | F31: Urban | G31: LBRA | H31: BH 11
B32: PO-0639633 | C32: 639633 | D32: -37.83347486 | E32: 145.1606 | F32: Urban | G32: LBRA | H32: BH 11
B33: PO-0639615 | C33: 639615 | D33: -37.83428792 | E33: 145.1687044 | F33: Urban | G33: LBRA | H33: NW 21
B34: PO-0639611 | C34: 639611 | D34: -37.83439959 | E34: 145.1704787 | F34: Urban | G34: LBRA | H34: BH-RWTS
B35: PO-0639610 | C35: 639610 | D35: -37.83442962 | E35: 145.1709783 | F35: Urban | G35: LBRA | H35: NW 14
B36: PO-0639609 | C36: 639609 | D36: -37.83445106 | E36: 145.1713669 | F36: Urban | G36: LBRA | H36: NW 14
B37: PO-0639614 | C37: 639614 | D37: -37.83432545 | E37: 145.1690577 | F37: Urban | G37: LBRA | H37: BH-RWTS
B38: PO-0639613 | C38: 639613 | D38: -37.83435086 | E38: 145.169471 | F38: Urban | G38: LBRA | H38: BH-RWTS
B39: PO-0639612 | C39: 639612 | D39: -37.83436943 | E39: 145.1700202 | F39: Urban | G39: LBRA | H39: BH-RWTS
B40: PO-0639604 | C40: 639604 | D40: -37.83473481 | E40: 145.1739104 | F40: Urban | G40: LBRA | H40: BH-RWTS
B41: PO-0639605 | C41: 639605 | D41: -37.83467128 | E41: 145.1733986 | F41: Urban | G41: LBRA | H41: BH-RWTS
B42: PO-0639603 | C42: 639603 | D42: -37.83479624 | E42: 145.1743861 | F42: Urban | G42: LBRA | H42: BH-RWTS
B43: PO-0639608 | C43: 639608 | D43: -37.8345135 | E43: 145.1719412 | F43: Urban | G43: LBRA | H43: NW 14
B44: PO-0639607 | C44: 639607 | D44: -37.83456642 | E44: 145.1724179 | F44: Urban | G44: LBRA | H44: NW 14
B45: PO-0639606 | C45: 639606 | D45: -37.83463211 | E45: 145.1730019 | F45: Urban | G45: LBRA | H45: NW 14
B46: PO-0639598 | C46: 639598 | D46: -37.83508189 | E46: 145.1768259 | F46: Urban | G46: LBRA | H46: BH-RWTS
B47: PO-0639597 | C47: 639597 | D47: -37.83516865 | E47: 145.1773391 | F47: Urban | G47: LBRA | H47: BH-RWTS
B48: PO-0639600 | C48: 639600 | D48: -37.83495696 | E48: 145.1758404 | F48: Urban | G48: LBRA | H48: BH-RWTS
B49: PO-0639599 | C49: 639599 | D49: -37.83502355 | E49: 145.1763577 | F49: Urban | G49: LBRA | H49: BH-RWTS
B50: PO-0639602 | C50: 639602 | D50: -37.83484953 | E50: 145.174915 | F50: Urban | G50: LBRA | H50: BH-RWTS
B51: PO-0639601 | C51: 639601 | D51: -37.83490991 | E51: 145.1754211 | F51: Urban | G51: LBRA | H51: BH-RWTS
B52: PO-0639591 | C52: 639591 | D52: -37.83546484 | E52: 145.1799262 | F52: Urban | G52: LBRA | H52: BH-RWTS
B53: PO-0639592 | C53: 639592 | D53: -37.83542836 | E53: 145.1796395 | F53: Urban | G53: LBRA | H53: NW 33
B54: PO-0639593 | C54: 639593 | D54: -37.83537033 | E54: 145.1791577 | F54: Urban | G54: LBRA | H54: BH-RWTS
B55: PO-0639594 | C55: 639594 | D55: -37.8353134 | E55: 145.1786819 | F55: Urban | G55: LBRA | H55: BH-RWTS
B56: PO-0639595 | C56: 639595 | D56: -37.83525501 | E56: 145.1782079 | F56: Urban | G56: LBRA | H56: BH-RWTS
B57: PO-0639596 | C57: 639596 | D57: -37.83519251 | E57: 145.177738 | F57: Urban | G57: LBRA | H57: BH-RWTS
B58: PO-0639621 | C58: 639621 | D58: -37.83390833 | E58: 145.1659641 | F58: Urban | G58: LBRA | H58: NW 21
B59: PO-0639620 | C59: 639620 | D59: -37.83396676 | E59: 145.1663663 | F59: Urban | G59: LBRA | H59: NW 21
B60: PO-0639617 | C60: 639617 | D60: -37.83413343 | E60: 145.1675321 | F60: Urban | G60: LBRA | H60: NW 21
B61: PO-0639618 | C61: 639618 | D61: -37.83408663 | E61: 145.167191 | F61: Urban | G61: LBRA | H61: NW 21
B62: PO-0639619 | C62: 639619 | D62: -37.8340114 | E62: 145.1666737 | F62: Urban | G62: LBRA | H62: NW 21
B63: PO-0639616 | C63: 639616 | D63: -37.83421632 | E63: 145.1681412 | F63: Urban | G63: LBRA | H63: NW 21
B64: PO-0639555 | C64: 639555 | D64: -37.83597647 | E64: 145.1951044 | F64: Urban | G64: LBRA | H64: RWT24
B65: PO-0639553 | C65: 639553 | D65: -37.83580497 | E65: 145.1959684 | F65: Urban | G65: LBRA | H65: RWT24
B66: PO-0639554 | C66: 639554 | D66: -37.83587739 | E66: 145.1955973 | F66: Urban | G66: LBRA | H66: RWT24
B67: PO-0639590 | C67: 639590 | D67: -37.83552638 | E67: 145.1804095 | F67: Urban | G67: LBRA | H67: BH-RWTS
B68: PO-0639588 | C68: 639588 | D68: -37.83563486 | E68: 145.1813065 | F68: Urban | G68: LBRA | H68: BH-RWTS
B69: PO-0639587 | C69: 639587 | D69: -37.83569257 | E69: 145.1817368 | F69: Urban | G69: LBRA | H69: BH-RWTS
B70: PO-0639585 | C70: 639585 | D70: -37.83580266 | E70: 145.1826413 | F70: Urban | G70: LBRA | H70: BH-RWTS
B71: PO-0639586 | C71: 639586 | D71: -37.83575886 | E71: 145.1822398 | F71: Urban | G71: LBRA | H71: NW 33
B72: PO-0639583 | C72: 639583 | D72: -37.83589529 | E72: 145.1833871 | F72: Urban | G72: LBRA | H72: BH-RWTS
B73: PO-0639584 | C73: 639584 | D73: -37.83584443 | E73: 145.1830096 | F73: Urban | G73: LBRA | H73: BH-RWTS
B74: PO-0639589 | C74: 639589 | D74: -37.8355813 | E74: 145.1808532 | F74: Urban | G74: LBRA | H74: BH-RWTS
B75: PO-0639431 | C75: 639431 | D75: -37.80966123 | E75: 145.1448542 | F75: Urban | G75: LBRA | H75: DC 08
B76: PO-0639432 | C76: 639432 | D76: -37.80962234 | E76: 145.144484 | F76: Urban | G76: LBRA | H76: DC 08
B77: PO-0639430 | C77: 639430 | D77: -37.80971137 | E77: 145.1452732 | F77: Urban | G77: LBRA | H77: DC 08
B78: PO-0639427 | C78: 639427 | D78: -37.80987396 | E78: 145.1467269 | F78: Urban | G78: LBRA | H78: DC 08
B79: PO-0639438 | C79: 639438 | D79: -37.8093561 | E79: 145.1420769 | F79: Urban | G79: LBRA | H79: DC 08
B80: PO-0639437 | C80: 639437 | D80: -37.80940555 | E80: 145.142547 | F80: Urban | G80: LBRA | H80: DC 08
B81: PO-0648552 | C81: 648552 | D81: -37.80943479 | E81: 145.1427811 | F81: Urban | G81: LBRA | H81: DC 08
B82: PO-0639434 | C82: 639434 | D82: -37.80952757 | E82: 145.1436174 | F82: Urban | G82: LBRA | H82: DC 08
B83: PO-0648553 | C83: 648553 | D83: -37.8094746 | E83: 145.1431152 | F83: Urban | G83: LBRA | H83: DC 08
B84: PO-0639433 | C84: 639433 | D84: -37.80956332 | E84: 145.1439801 | F84: Urban | G84: LBRA | H84: DC 08
B85: PO-7051021 | C85: 7051021 | D85: -37.81988111 | E85: 145.1385426 | F85: Urban | G85: LBRA | H85: NW 31
B86: PO-0639404 | C86: 639404 | D86: -37.81113477 | E86: 145.1578931 | F86: Urban | G86: LBRA | H86: NW 31
B87: PO-0639423 | C87: 639423 | D87: -37.81009123 | E87: 145.1487017 | F87: Urban | G87: LBRA | H87: DC 08
B88: PO-0639719 | C88: 639719 | D88: -37.83257354 | E88: 145.1535725 | F88: Urban | G88: LBRA | H88: BH 11
B89: PO-0639720 | C89: 639720 | D89: -37.83251999 | E89: 145.1531493 | F89: Urban | G89: LBRA | H89: BH 11
B90: PO-0639721 | C90: 639721 | D90: -37.83247832 | E90: 145.1527459 | F90: Urban | G90: LBRA | H90: BH 11
B91: PO-0639722 | C91: 639722 | D91: -37.83243696 | E91: 145.1523484 | F91: Urban | G91: LBRA | H91: BH 11
B92: PO-0639718 | C92: 639718 | D92: -37.83262816 | E92: 145.1540133 | F92: Urban | G92: LBRA | H92: BH 11
B93: PO-0639717 | C93: 639717 | D93: -37.8326619 | E93: 145.154344 | F93: Urban | G93: LBRA | H93: BH 11
B94: PO-0639728 | C94: 639728 | D94: -37.83217472 | E94: 145.1500057 | F94: Urban | G94: LBRA | H94: BH 11
B95: PO-0639727 | C95: 639727 | D95: -37.83221813 | E95: 145.1503777 | F95: Urban | G95: LBRA | H95: BH 11
B96: PO-0639729 | C96: 639729 | D96: -37.83209311 | E96: 145.1493033 | F96: Urban | G96: LBRA | H96: BH 11
B97: PO-0639723 | C97: 639723 | D97: -37.83238117 | E97: 145.1518804 | F97: Urban | G97: LBRA | H97: BH 11
B98: PO-0639726 | C98: 639726 | D98: -37.8322624 | E98: 145.1508065 | F98: Urban | G98: LBRA | H98: BH 11
B99: PO-0639725 | C99: 639725 | D99: -37.83231098 | E99: 145.1512267 | F99: Urban | G99: LBRA | H99: BH 11
B100: PO-0639740 | C100: 639740 | D100: -37.83151711 | E100: 145.1447707 | F100: Urban | G100: LBRA | H100: BH 11
B101: PO-0639741 | C101: 639741 | D101: -37.83145304 | E101: 145.1442307 | F101: Urban | G101: LBRA | H101: BH 11
B102: PO-0639742 | C102: 639742 | D102: -37.83140143 | E102: 145.1438173 | F102: Urban | G102: LBRA | H102: BH 11
B103: PO-0639736 | C103: 639736 | D103: -37.83174283 | E103: 145.1464202 | F103: Urban | G103: LBRA | H103: BH 11
B104: PO-0639735 | C104: 639735 | D104: -37.83176037 | E104: 145.1468098 | F104: Urban | G104: LBRA | H104: BH 11
B105: PO-0639733 | C105: 639733 | D105: -37.83192414 | E105: 145.1478228 | F105: Urban | G105: LBRA | H105: BH 11
B106: PO-0639734 | C106: 639734 | D106: -37.83182637 | E106: 145.1473332 | F106: Urban | G106: LBRA | H106: BH 11
B107: PO-0639732 | C107: 639732 | D107: -37.83195584 | E107: 145.1481193 | F107: Urban | G107: LBRA | H107: BH 11
B108: PO-0639730 | C108: 639730 | D108: -37.83204889 | E108: 145.1489749 | F108: Urban | G108: LBRA | H108: BH 11
B109: PO-0639731 | C109: 639731 | D109: -37.8319834 | E109: 145.1484406 | F109: Urban | G109: LBRA | H109: BH 11
B110: PO-0648580 | C110: 648580 | D110: -37.83156033 | E110: 145.1451313 | F110: Urban | G110: LBRA | H110: BH 11
B111: PO-0639738 | C111: 639738 | D111: -37.83163635 | E111: 145.1455707 | F111: Urban | G111: LBRA | H111: BH 11
B112: PO-0639737 | C112: 639737 | D112: -37.83170817 | E112: 145.1461257 | F112: Urban | G112: LBRA | H112: BH 11
B113: PO-0639640 | C113: 639640 | D113: -37.83306538 | E113: 145.1576837 | F113: Urban | G113: LBRA | H113: BH 11
B114: PO-0639641 | C114: 639641 | D114: -37.83302074 | E114: 145.1573079 | F114: Urban | G114: LBRA | H114: BH 11
B115: PO-0639639 | C115: 639639 | D115: -37.83310376 | E115: 145.1580065 | F115: Urban | G115: LBRA | H115: BH 11
B116: PO-0639482 | C116: 639482 | D116: -37.82921964 | E116: 145.1364274 | F116: Urban | G116: LBRA | H116: BH 23
B117: PO-0639483 | C117: 639483 | D117: -37.82947749 | E117: 145.136354 | F117: Urban | G117: LBRA | H117: BH-NW
B118: PO-0639743 | C118: 639743 | D118: -37.8313425 | E118: 145.1433169 | F118: Urban | G118: LBRA | H118: BH 11
B119: PO-0639744 | C119: 639744 | D119: -37.83128056 | E119: 145.1428204 | F119: Urban | G119: LBRA | H119: BH 11
B120: PO-0639745 | C120: 639745 | D120: -37.83124841 | E120: 145.1424955 | F120: Urban | G120: LBRA | H120: BH 11
B121: PO-0639747 | C121: 639747 | D121: -37.83115172 | E121: 145.1416988 | F121: Urban | G121: LBRA | H121: BH 11
B122: PO-0639748 | C122: 639748 | D122: -37.83110896 | E122: 145.1413666 | F122: Urban | G122: LBRA | H122: BH 11
B123: PO-0639746 | C123: 639746 | D123: -37.83119699 | E123: 145.1420915 | F123: Urban | G123: LBRA | H123: BH 11
B124: PO-0639751 | C124: 639751 | D124: -37.83099491 | E124: 145.1404244 | F124: Urban | G124: LBRA | H124: BH 11
B125: PO-0639750 | C125: 639750 | D125: -37.83103768 | E125: 145.1407529 | F125: Urban | G125: LBRA | H125: BH 11
B126: PO-0639753 | C126: 639753 | D126: -37.8309031 | E126: 145.1396503 | F126: Urban | G126: LBRA | H126: BH 11
B127: PO-0639755 | C127: 639755 | D127: -37.83121961 | E127: 145.1395287 | F127: Urban | G127: LBRA | H127: BH 11
B128: PO-0609104 | C128: 609104 | D128: -37.85835064 | E128: 145.1380288 | F128: Urban | G128: LBRA | H128: EB 22
B129: PO-0611015 | C129: 611015 | D129: -37.85817881 | E129: 145.1364262 | F129: Urban | G129: LBRA | H129: EB 22
B130: PO-0611017 | C130: 611017 | D130: -37.85813151 | E130: 145.1360269 | F130: Urban | G130: LBRA | H130: EB 22
B131: PO-0611135 | C131: 611135 | D131: -37.85801919 | E131: 145.135056 | F131: Urban | G131: LBRA | H131: EB 22
B132: PO-0611022 | C132: 611022 | D132: -37.85807106 | E132: 145.1355309 | F132: Urban | G132: LBRA | H132: EB 22
B133: PO-0611138 | C133: 611138 | D133: -37.85796275 | E133: 145.1345641 | F133: Urban | G133: LBRA | H133: EB 22
B134: PO-0611309 | C134: 611309 | D134: -37.85788583 | E134: 145.1340307 | F134: Urban | G134: LBRA | H134: EB 22
B135: PO-0636584 | C135: 636584 | D135: -37.85803855 | E135: 145.1340587 | F135: Urban | G135: LBRA | H135: EB 22
B136: PO-0636585 | C136: 636585 | D136: -37.85830724 | E136: 145.1340098 | F136: Urban | G136: LBRA | H136: EB 22
B137: PO-0611611 | C137: 611611 | D137: -37.85784366 | E137: 145.1335305 | F137: Urban | G137: LBRA | H137: EB 22
B138: PO-0601897 | C138: 601897 | D138: -37.85797822 | E138: 145.1323792 | F138: Urban | G138: LBRA | H138: EB 22
B139: PO-0601898 | C139: 601898 | D139: -37.85835704 | E139: 145.1323195 | F139: Urban | G139: LBRA | H139: EB 22
B140: PO-2333068 | C140: 2333068 | D140: -37.85762 | E140: 145.1311356 | F140: Urban | G140: LBRA | H140: BW 33
B141: PO-0600258 | C141: 600258 | D141: -37.85830977 | E141: 145.1321786 | F141: Urban | G141: LBRA | H141: EB 22
B142: PO-2333070 | C142: 2333070 | D142: -37.85748146 | E142: 145.1300728 | F142: Urban | G142: LBRA | H142: BW 33
B143: PO-2333069 | C143: 2333069 | D143: -37.85756249 | E143: 145.130522 | F143: Urban | G143: LBRA | H143: BW 33
B144: PO-2314576 | C144: 2314576 | D144: -37.85764456 | E144: 145.1305825 | F144: Urban | G144: LBRA | H144: BW 33
B145: PO-2314577 | C145: 2314577 | D145: -37.85791261 | E145: 145.1305344 | F145: Urban | G145: LBRA | H145: BW 33
B146: PO-2314578 | C146: 2314578 | D146: -37.85817916 | E146: 145.1304803 | F146: Urban | G146: LBRA | H146: BW 33
B147: PO-2314579 | C147: 2314579 | D147: -37.85832773 | E147: 145.1304527 | F147: Urban | G147: LBRA | H147: BW 33
B148: PO-2300670 | C148: 2300670 | D148: -37.85833593 | E148: 145.130163 | F148: Urban | G148: LBRA | H148: BW 33
B149: PO-2314580 | C149: 2314580 | D149: -37.85828106 | E149: 145.1297469 | F149: Urban | G149: LBRA | H149: BW 33
B150: PO-2333073 | C150: 2333073 | D150: -37.85729642 | E150: 145.1285806 | F150: Urban | G150: LBRA | H150: BW 33
B151: PO-2314574 | C151: 2314574 | D151: -37.85742336 | E151: 145.1285706 | F151: Urban | G151: LBRA | H151: BW 33
B152: PO-2333072 | C152: 2333072 | D152: -37.85735723 | E152: 145.1290123 | F152: Urban | G152: LBRA | H152: BW 33
B153: PO-2333071 | C153: 2333071 | D153: -37.85741492 | E153: 145.129571 | F153: Urban | G153: LBRA | H153: BW 33
B154: PO-2314581 | C154: 2314581 | D154: -37.85827127 | E154: 145.1295278 | F154: Urban | G154: LBRA | H154: BW 33
B155: PO-2314573 | C155: 2314573 | D155: -37.85782466 | E155: 145.1285042 | F155: Urban | G155: LBRA | H155: BW 33
B156: PO-2314557 | C156: 2314557 | D156: -37.85815896 | E156: 145.1281314 | F156: Urban | G156: LBRA | H156: BW 33
B157: PO-2314572 | C157: 2314572 | D157: -37.8582401 | E157: 145.128433 | F157: Urban | G157: LBRA | H157: BW 33
B158: PO-2333076 | C158: 2333076 | D158: -37.85708164 | E158: 145.1268049 | F158: Urban | G158: LBRA | H158: BW 33
B159: PO-2333077 | C159: 2333077 | D159: -37.85702611 | E159: 145.1264301 | F159: Urban | G159: LBRA | H159: BW 33
B160: PO-2333078 | C160: 2333078 | D160: -37.85698076 | E160: 145.1260141 | F160: Urban | G160: LBRA | H160: BW 33
B161: PO-2314246 | C161: 2314246 | D161: -37.85706917 | E161: 145.1256254 | F161: Urban | G161: LBRA | H161: BW 33
B162: PO-2333079 | C162: 2333079 | D162: -37.85692461 | E162: 145.1255449 | F162: Urban | G162: LBRA | H162: BW 33
B163: PO-2333075 | C163: 2333075 | D163: -37.85714007 | E163: 145.1272467 | F163: Urban | G163: LBRA | H163: BW 33
B164: PO-2314644 | C164: 2314644 | D164: -37.85721536 | E164: 145.1267697 | F164: Urban | G164: LBRA | H164: BW 33
B165: PO-2333074 | C165: 2333074 | D165: -37.85722049 | E165: 145.1279426 | F165: Urban | G165: LBRA | H165: BW 33
B166: PO-2314558 | C166: 2314558 | D166: -37.85812687 | E166: 145.1278136 | F166: Urban | G166: LBRA | H166: BW 33
B167: PO-2314561 | C167: 2314561 | D167: -37.85787394 | E167: 145.1268701 | F167: Urban | G167: LBRA | H167: BW 33
B168: PO-2314560 | C168: 2314560 | D168: -37.85792573 | E168: 145.127236 | F168: Urban | G168: LBRA | H168: BW 33
B169: PO-2314559 | C169: 2314559 | D169: -37.85808441 | E169: 145.1274672 | F169: Urban | G169: LBRA | H169: BW 33
B170: PO-2314247 | C170: 2314247 | D170: -37.85748821 | E170: 145.1255514 | F170: Urban | G170: LBRA | H170: BW 33
B171: PO-2314646 | C171: 2314646 | D171: -37.85785263 | E171: 145.1266626 | F171: Urban | G171: LBRA | H171: BW 33
B172: PO-2314647 | C172: 2314647 | D172: -37.85820102 | E172: 145.1265856 | F172: Urban | G172: LBRA | H172: BW 33
B173: PO-2314248 | C173: 2314248 | D173: -37.85788708 | E173: 145.1254887 | F173: Urban | G173: LBRA | H173: BW 33
B174: PO-2314249 | C174: 2314249 | D174: -37.8582961 | E174: 145.1254238 | F174: Urban | G174: LBRA | H174: BW 33
B175: PO-2333080 | C175: 2333080 | D175: -37.85687364 | E175: 145.1250609 | F175: Urban | G175: LBRA | H175: BW 33
B176: PO-2335642 | C176: 2335642 | D176: -37.85680533 | E176: 145.1244499 | F176: Urban | G176: LBRA | H176: BW 33
B177: PO-2314641 | C177: 2314641 | D177: -37.85690676 | E177: 145.1245361 | F177: Urban | G177: LBRA | H177: BW 33
B178: PO-2314642 | C178: 2314642 | D178: -37.85734686 | E178: 145.1244515 | F178: Urban | G178: LBRA | H178: BW 33
B179: PO-2314643 | C179: 2314643 | D179: -37.8578016 | E179: 145.1243633 | F179: Urban | G179: LBRA | H179: BW 33
B180: PO-2314640 | C180: 2314640 | D180: -37.85818101 | E180: 145.1243082 | F180: Urban | G180: LBRA | H180: BW 33
B181: PO-2333086 | C181: 2333086 | D181: -37.85649472 | E181: 145.1218697 | F181: Urban | G181: LBRA | H181: BW 33
B182: PO-2333087 | C182: 2333087 | D182: -37.85646175 | E182: 145.121608 | F182: Urban | G182: LBRA | H182: BW 33
B183: PO-2333088 | C183: 2333088 | D183: -37.8564398 | E183: 145.1214187 | F183: Urban | G183: LBRA | H183: BW 33
B184: PO-2333085 | C184: 2333085 | D184: -37.85657565 | E184: 145.1224792 | F184: Urban | G184: LBRA | H184: BW 33
B185: PO-2335641 | C185: 2335641 | D185: -37.85674244 | E185: 145.1238969 | F185: Urban | G185: LBRA | H185: BW 33
B186: PO-2333083 | C186: 2333083 | D186: -37.85671493 | E186: 145.1235259 | F186: Urban | G186: LBRA | H186: BW 33
B187: PO-2314236 | C187: 2314236 | D187: -37.85681868 | E187: 145.1235347 | F187: Urban | G187: LBRA | H187: BW 33
B188: PO-2314235 | C188: 2314235 | D188: -37.85713665 | E188: 145.123638 | F188: Urban | G188: LBRA | H188: BW 33
B189: PO-2314234 | C189: 2314234 | D189: -37.8570673 | E189: 145.1234883 | F189: Urban | G189: LBRA | H189: BW 33
B190: PO-2333084 | C190: 2333084 | D190: -37.8566191 | E190: 145.1228304 | F190: Urban | G190: LBRA | H190: BW 33
B191: PO-2314233 | C191: 2314233 | D191: -37.85752753 | E191: 145.1234042 | F191: Urban | G191: LBRA | H191: BW 33
B192: PO-2314232 | C192: 2314232 | D192: -37.85790956 | E192: 145.1233342 | F192: Urban | G192: LBRA | H192: BW 33
B193: PO-2314231 | C193: 2314231 | D193: -37.8583624 | E193: 145.1232488 | F193: Urban | G193: LBRA | H193: BW 33
B194: PO-2312713 | C194: 2312713 | D194: -37.85727437 | E194: 145.1214794 | F194: Urban | G194: LBRA | H194: BW 33
B195: PO-2312714 | C195: 2312714 | D195: -37.85732548 | E195: 145.1218577 | F195: Urban | G195: LBRA | H195: BW 33
B196: PO-2313453 | C196: 2313453 | D196: -37.85734952 | E196: 145.122405 | F196: Urban | G196: LBRA | H196: BW 33
B197: PO-2313454 | C197: 2313454 | D197: -37.85759743 | E197: 145.1224692 | F197: Urban | G197: LBRA | H197: BW 33
B198: PO-2313455 | C198: 2313455 | D198: -37.85789172 | E198: 145.1223867 | F198: Urban | G198: LBRA | H198: BW 23
B199: PO-2313470 | C199: 2313470 | D199: -37.85817444 | E199: 145.1220874 | F199: Urban | G199: LBRA | H199: BW 23
B200: PO-2313456 | C200: 2313456 | D200: -37.8582116 | E200: 145.1223263 | F200: Urban | G200: LBRA | H200: BW 23
B201: PO-2313471 | C201: 2313471 | D201: -37.85813491 | E201: 145.1217565 | F201: Urban | G201: LBRA | H201: BW 23
... 4299 more rows

Sheet Fire Rating
B2: Date | C2: Fire Danger Rating | D2: TFB
B3: 2016-07-01 | C3: No forecast
B4: 2016-07-02 | C4: No forecast
B5: 2016-07-03 | C5: No forecast
B6: 2016-07-04 | C6: No forecast
B7: 2016-07-05 | C7: No forecast
B8: 2016-07-06 | C8: No forecast
B9: 2016-07-07 | C9: No forecast
B10: 2016-07-08 | C10: No forecast
B11: 2016-07-09 | C11: No forecast
B12: 2016-07-10 | C12: No forecast
B13: 2016-07-11 | C13: No forecast
B14: 2016-07-12 | C14: No forecast
B15: 2016-07-13 | C15: No forecast
B16: 2016-07-14 | C16: No forecast
B17: 2016-07-15 | C17: No forecast
B18: 2016-07-16 | C18: No forecast
B19: 2016-07-17 | C19: No forecast
B20: 2016-07-18 | C20: No forecast
B21: 2016-07-19 | C21: No forecast
B22: 2016-07-20 | C22: No forecast
B23: 2016-07-21 | C23: No forecast
B24: 2016-07-22 | C24: No forecast
B25: 2016-07-23 | C25: No forecast
B26: 2016-07-24 | C26: No forecast
B27: 2016-07-25 | C27: No forecast
B28: 2016-07-26 | C28: No forecast
B29: 2016-07-27 | C29: No forecast
B30: 2016-07-28 | C30: No forecast
B31: 2016-07-29 | C31: No forecast
B32: 2016-07-30 | C32: No forecast
B33: 2016-07-31 | C33: No forecast
B34: 2016-08-01 | C34: No forecast
B35: 2016-08-02 | C35: No forecast
B36: 2016-08-03 | C36: No forecast
B37: 2016-08-04 | C37: No forecast
B38: 2016-08-05 | C38: No forecast
B39: 2016-08-06 | C39: No forecast
B40: 2016-08-07 | C40: No forecast
B41: 2016-08-08 | C41: No forecast
B42: 2016-08-09 | C42: No forecast
B43: 2016-08-10 | C43: No forecast
B44: 2016-08-11 | C44: No forecast
B45: 2016-08-12 | C45: No forecast
B46: 2016-08-13 | C46: No forecast
B47: 2016-08-14 | C47: No forecast
B48: 2016-08-15 | C48: No forecast
B49: 2016-08-16 | C49: No forecast
B50: 2016-08-17 | C50: No forecast
B51: 2016-08-18 | C51: No forecast
B52: 2016-08-19 | C52: No forecast
B53: 2016-08-20 | C53: No forecast
B54: 2016-08-21 | C54: No forecast
B55: 2016-08-22 | C55: No forecast
B56: 2016-08-23 | C56: No forecast
B57: 2016-08-24 | C57: No forecast
B58: 2016-08-25 | C58: No forecast
B59: 2016-08-26 | C59: No forecast
B60: 2016-08-27 | C60: No forecast
B61: 2016-08-28 | C61: No forecast
B62: 2016-08-29 | C62: No forecast
B63: 2016-08-30 | C63: No forecast
B64: 2016-08-31 | C64: No forecast
B65: 2016-09-01 | C65: No forecast
B66: 2016-09-02 | C66: No forecast
B67: 2016-09-03 | C67: No forecast
B68: 2016-09-04 | C68: No forecast
B69: 2016-09-05 | C69: No forecast
B70: 2016-09-06 | C70: No forecast
B71: 2016-09-07 | C71: No forecast
B72: 2016-09-08 | C72: No forecast
B73: 2016-09-09 | C73: No forecast
B74: 2016-09-10 | C74: No forecast
B75: 2016-09-11 | C75: No forecast
B76: 2016-09-12 | C76: No forecast
B77: 2016-09-13 | C77: No forecast
B78: 2016-09-14 | C78: No forecast
B79: 2016-09-15 | C79: No forecast
B80: 2016-09-16 | C80: No forecast
B81: 2016-09-17 | C81: No forecast
B82: 2016-09-18 | C82: No forecast
B83: 2016-09-19 | C83: No forecast
B84: 2016-09-20 | C84: No forecast
B85: 2016-09-21 | C85: No forecast
B86: 2016-09-22 | C86: No forecast
B87: 2016-09-23 | C87: No forecast
B88: 2016-09-24 | C88: No forecast
B89: 2016-09-25 | C89: No forecast
B90: 2016-09-26 | C90: No forecast
B91: 2016-09-27 | C91: No forecast
B92: 2016-09-28 | C92: No forecast
B93: 2016-09-29 | C93: No forecast
B94: 2016-09-30 | C94: No forecast
B95: 2016-10-01 | C95: No forecast
B96: 2016-10-02 | C96: No forecast
B97: 2016-10-03 | C97: No forecast | D97: No - Restrictions may apply
B98: 2016-10-04 | C98: No forecast | D98: No - Restrictions may apply
B99: 2016-10-05 | C99: No forecast | D99: No - Restrictions may apply
B100: 2016-10-06 | C100: No forecast | D100: No - Restrictions may apply
B101: 2016-10-07 | C101: No forecast | D101: No - Restrictions may apply
B102: 2016-10-08 | C102: No forecast | D102: No - Restrictions may apply
B103: 2016-10-09 | C103: No forecast | D103: No - Restrictions may apply
B104: 2016-10-10 | C104: No forecast | D104: No - Restrictions may apply
B105: 2016-10-11 | C105: No forecast | D105: No - Restrictions may apply
B106: 2016-10-12 | C106: No forecast | D106: No - Restrictions may apply
B107: 2016-10-13 | C107: No forecast | D107: No - Restrictions may apply
B108: 2016-10-14 | C108: No forecast | D108: No - Restrictions may apply
B109: 2016-10-15 | C109: No forecast | D109: No - Restrictions may apply
B110: 2016-10-16 | C110: No forecast | D110: No - Restrictions may apply
B111: 2016-10-17 | C111: No forecast | D111: No - Restrictions may apply
B112: 2016-10-18 | C112: No forecast | D112: No - Restrictions may apply
B113: 2016-10-19 | C113: No forecast | D113: No - Restrictions may apply
B114: 2016-10-20 | C114: No forecast | D114: No - Restrictions may apply
B115: 2016-10-21 | C115: No forecast | D115: No - Restrictions may apply
B116: 2016-10-22 | C116: No forecast | D116: No - Restrictions may apply
B117: 2016-10-23 | C117: No forecast | D117: No - Restrictions may apply
B118: 2016-10-24 | C118: No forecast | D118: No - Restrictions may apply
B119: 2016-10-25 | C119: No forecast | D119: No - Restrictions may apply
B120: 2016-10-26 | C120: No forecast | D120: No - Restrictions may apply
B121: 2016-10-27 | C121: No forecast | D121: No - Restrictions may apply
B122: 2016-10-28 | C122: No forecast | D122: No - Restrictions may apply
B123: 2016-10-29 | C123: No forecast | D123: No - Restrictions may apply
B124: 2016-10-30 | C124: No forecast | D124: No - Restrictions may apply
B125: 2016-10-31 | C125: No forecast | D125: No - Restrictions may apply
B126: 2016-11-01 | C126: No forecast | D126: No - Restrictions may apply
B127: 2016-11-02 | C127: No forecast | D127: No - Restrictions may apply
B128: 2016-11-03 | C128: Low-moderate | D128: No - Restrictions may apply
B129: 2016-11-04 | C129: High | D129: No - Restrictions may apply
B130: 2016-11-05 | C130: Low-moderate | D130: No - Restrictions may apply
B131: 2016-11-06 | C131: Low-moderate | D131: No - Restrictions may apply
B132: 2016-11-07 | C132: High | D132: No - Restrictions may apply
B133: 2016-11-08 | C133: Low-moderate | D133: No - Restrictions may apply
B134: 2016-11-09 | C134: Low-moderate | D134: No - Restrictions may apply
B135: 2016-11-10 | C135: Low-moderate | D135: No - Restrictions may apply
B136: 2016-11-11 | C136: Low-moderate | D136: No - Restrictions may apply
B137: 2016-11-12 | C137: Low-moderate | D137: No - Restrictions may apply
B138: 2016-11-13 | C138: Low-moderate | D138: No - Restrictions may apply
B139: 2016-11-14 | C139: Low-moderate | D139: No - Restrictions may apply
B140: 2016-11-15 | C140: Low-moderate | D140: No - Restrictions may apply
B141: 2016-11-16 | C141: Low-moderate | D141: No - Restrictions may apply
B142: 2016-11-17 | C142: High | D142: No - Restrictions may apply
B143: 2016-11-18 | C143: Low-moderate | D143: No - Restrictions may apply
B144: 2016-11-19 | C144: Low-moderate | D144: No - Restrictions may apply
B145: 2016-11-20 | C145: High | D145: No - Restrictions may apply
B146: 2016-11-21 | C146: Very high | D146: No - Restrictions may apply
B147: 2016-11-22 | C147: Low-moderate | D147: No - Restrictions may apply
B148: 2016-11-23 | C148: Low-moderate | D148: No - Restrictions may apply
B149: 2016-11-24 | C149: Low-moderate | D149: No - Restrictions may apply
B150: 2016-11-25 | C150: Low-moderate | D150: No - Restrictions may apply
B151: 2016-11-26 | C151: Low-moderate | D151: No - Restrictions may apply
B152: 2016-11-27 | C152: Low-moderate | D152: No - Restrictions may apply
B153: 2016-11-28 | C153: Low-moderate | D153: No - Restrictions may apply
B154: 2016-11-29 | C154: Low-moderate | D154: No - Restrictions may apply
B155: 2016-11-30 | C155: Low-moderate | D155: No - Restrictions may apply
B156: 2016-12-01 | C156: Low-moderate | D156: No - Restrictions may apply
B157: 2016-12-02 | C157: Low-moderate | D157: No - Restrictions may apply
B158: 2016-12-03 | C158: Low-moderate | D158: No - Restrictions may apply
B159: 2016-12-04 | C159: High | D159: No - Restrictions may apply
B160: 2016-12-05 | C160: Low-moderate | D160: No - Restrictions may apply
B161: 2016-12-06 | C161: Low-moderate | D161: No - Restrictions may apply
B162: 2016-12-07 | C162: High | D162: No - Restrictions may apply
B163: 2016-12-08 | C163: High | D163: No - Restrictions may apply
B164: 2016-12-09 | C164: Low-moderate | D164: No - Restrictions may apply
B165: 2016-12-10 | C165: Low-moderate | D165: No - Restrictions may apply
B166: 2016-12-11 | C166: Low-moderate | D166: No - Restrictions may apply
B167: 2016-12-12 | C167: High | D167: No - Restrictions may apply
B168: 2016-12-13 | C168: Very high | D168: No - Restrictions may apply
B169: 2016-12-14 | C169: Low-moderate | D169: No - Restrictions may apply
B170: 2016-12-15 | C170: Low-moderate | D170: No - Restrictions may apply
B171: 2016-12-16 | C171: Low-moderate | D171: No - Restrictions may apply
B172: 2016-12-17 | C172: High | D172: No - Restrictions may apply
B173: 2016-12-18 | C173: Low-moderate | D173: No - Restrictions may apply
B174: 2016-12-19 | C174: Very high | D174: No - Restrictions may apply
B175: 2016-12-20 | C175: High | D175: No - Restrictions may apply
B176: 2016-12-21 | C176: Low-moderate | D176: No - Restrictions may apply
B177: 2016-12-22 | C177: Low-moderate | D177: No - Restrictions may apply
B178: 2016-12-23 | C178: High | D178: No - Restrictions may apply
B179: 2016-12-24 | C179: High | D179: No - Restrictions may apply
B180: 2016-12-25 | C180: Very high | D180: No - Restrictions may apply
B181: 2016-12-26 | C181: High | D181: No - Restrictions may apply
B182: 2016-12-27 | C182: Low-moderate | D182: No - Restrictions may apply
B183: 2016-12-28 | C183: Very high | D183: No - Restrictions may apply
B184: 2016-12-29 | C184: Low-moderate | D184: No - Restrictions may apply
B185: 2016-12-30 | C185: High | D185: No - Restrictions may apply
B186: 2016-12-31 | C186: Low-moderate | D186: No - Restrictions may apply
B187: 2017-01-01 | C187: Low-moderate | D187: No - Restrictions may apply
B188: 2017-01-02 | C188: Low-moderate | D188: No - Restrictions may apply
B189: 2017-01-03 | C189: Low-moderate | D189: No - Restrictions may apply
B190: 2017-01-04 | C190: High | D190: No - Restrictions may apply
B191: 2017-01-05 | C191: High | D191: No - Restrictions may apply
B192: 2017-01-06 | C192: High | D192: No - Restrictions may apply
B193: 2017-01-07 | C193: Very high | D193: No - Restrictions may apply
B194: 2017-01-08 | C194: Very high | D194: No - Restrictions may apply
B195: 2017-01-09 | C195: Low-moderate | D195: No - Restrictions may apply
B196: 2017-01-10 | C196: High | D196: No - Restrictions may apply
B197: 2017-01-11 | C197: High | D197: No - Restrictions may apply
B198: 2017-01-12 | C198: High | D198: No - Restrictions may apply
B199: 2017-01-13 | C199: High | D199: No - Restrictions may apply
B200: 2017-01-14 | C200: High | D200: No - Restrictions may apply
B201: 2017-01-15 | C201: Low-moderate | D201: No - Restrictions may apply
... 177 more rows
